Workbook

Sheet ¿
B2: CTE HS4 SUMINISTRO DE AGUA | F2: Calculo de redes de distribución de agua fria y caliente | L2: Versión v.3.1 Diciembre 2019
B4: Tan solo es necesario introducir datos en las casillas en color blanco. | K4: Nota: La presente aplicación se proporciona bajo una licencia Creative Commons "tal cual", sin garantías implícitas o explícitas. Bajo ninguna circunstancia el autor se responsabiliza de su uso.
B5: El resto de celdas indican los resultados de calculo
K9: Actualizaciones y otras herramientas:
K11: Autor: Oscar Redondo Rivera
K12: o.redondo.rivera@gmail.com

Sheet Consumos TIPO
I2: Actualizaciones y otras herramientas en:
B3: CTE HS4 SUMINISTRO DE AGUA | J3: Autor: | K3: Oscar Redondo Rivera o.redondo.rivera@gmail.com
C5: 1.- DATOS GENERALES | H5: SUMINISTRO DE AGUA FRIA | T5: SUMINISTRO ACS
B7: Tipo edificio | D7: Viviendas | K7: Q Total AF | P7: Q adicional AF | U7: Q total ACS
B8: Temp. AF | D8: 10 ºC | H8: Uds suministro | J8: Descripcion | K8: Uds | L8: Q (l/s) | N8: Uds | O8: Otros usos | P8: Q (l/s) | Q8: Q (l/s) | R8: D(mm) | U8: Uds | V8: Q (l/s)
B9: Temp ACS | D9: 50 ºC | F9: =IF(((19+K14)/(10*(1+K14)))<0.2,0.2,((19+K14)/(10*(1+K14)))) -> 0.20 | H9: =D18 -> VIVIENDA TIPO A | J9: =D19 -> Cocina + 2 baños (ducha + bañera) | K9: 20 | L9: =K9*E36 -> 33.00 | N9: 1 | O9: Basuras + Baldeo | P9: 0.20 | Q9: =N9*P9 -> 0.20 | R9: =IF(X9<13.1,16,IF($C$46="Cobre",INDEX(Tablas!$B$137:$B$146,MATCH(X9,Tablas!$C$137:$C$146,1)+1,1),INDEX(Tablas!$S$98:$S$111,MATCH(X9,Tablas!$R$98:$R$111,1)+1,1))) -> 16 | T9: =H9 -> VIVIENDA TIPO A | U9: 2 | V9: =F36*K9 -> 18.20 | X9: =(4000*P9/(3.1416*$D$11))^0.5 -> 9.21 | Y9: =IF($C$46="Cobre",VLOOKUP($R$9,Tablas!$B$137:$C$146,2,FALSE),INDEX(Tablas!$R$98:$R$111,MATCH(IF(X9<13,13,X9),Tablas!$R$98:$R$111,1)+1,1)) -> 13.1 | Z9: =4000*P9/(3.1416*Y9*Y9) -> 1.48387223
B10: Simultaneidad | D10: UNE 149.201/07 | F10: =IF((L14+Q14)<20,0.682*((L14+Q14)^0.45)-0.14,1.7*((L14+Q14)^0.21)-0.7)/(L14+Q14) -> 0.06 | H10: =J18 -> VIVIENDA TIPO B | J10: =J19 -> Duplex Cocina + 3 baños (2xducha + bañera) | K10: 5 | L10: =K10*K36 -> 9.25 | N10: 1 | O10: Riego | P10: 1.00 | Q10: =N10*P10 -> 1.00 | R10: =IF(X10<13.1,16,IF($C$46="Cobre",INDEX(Tablas!$B$137:$B$146,MATCH(X10,Tablas!$C$137:$C$146,1)+1,1),INDEX(Tablas!$S$98:$S$111,MATCH(X10,Tablas!$R$98:$R$111,1)+1,1))) -> 32 | T10: =H10 -> VIVIENDA TIPO B | U10: 4 | V10: =L36*K10 -> 5.05 | X10: =(4000*P10/(3.1416*$D$11))^0.5 -> 20.60 | Y10: =IF($C$46="Cobre",VLOOKUP($R$9,Tablas!$B$137:$C$146,2,FALSE),INDEX(Tablas!$R$98:$R$111,MATCH(IF(X10<13,13,X10),Tablas!$R$98:$R$111,1)+1,1)) -> 26.2 | Z10: =4000*P10/(3.1416*Y10*Y10) -> 1.854840288
B11: Vel. Int viv | D11: 3.00 m/s | E11: =IF(D12<>Tablas!$B$87,"",(IF(D12=Tablas!$B$87,IF('Consumos TIPO'!D11>2,"Revisar","")))) ->  | F11: =IF(((19+K14)/(10*(1+K14)))<0.2,0.2,((19+K14)/(10*(1+K14)))) -> 0.20 | H11: =O18 -> VIVIENDA TIPO C | J11: =O19 -> Cocina + 2 baños (ducha + bañera) + aseo | K11: 0 | L11: =K11*P36 -> 0.00 | N11: 1 | O11: Sala Solar | P11: =D14*1.1 -> 2.85 | Q11: =N11*P11 -> 2.85 | R11: =IF(X11<13.1,16,IF($C$46="Cobre",INDEX(Tablas!$B$137:$B$146,MATCH(X11,Tablas!$C$137:$C$146,1)+1,1),INDEX(Tablas!$S$98:$S$111,MATCH(X11,Tablas!$R$98:$R$111,1)+1,1))) -> 50 | T11: =H11 -> VIVIENDA TIPO C | U11: 38 | V11: =Q36*K11 -> 0.00 | X11: =(4000*P11/(3.1416*$D$11))^0.5 -> 34.78 | Y11: =IF($C$46="Cobre",VLOOKUP($R$9,Tablas!$B$137:$C$146,2,FALSE),INDEX(Tablas!$R$98:$R$111,MATCH(IF(X11<13,13,X11),Tablas!$R$98:$R$111,1)+1,1)) -> 40.9 | Z11: =4000*P11/(3.1416*Y11*Y11) -> 2.169758094
B12: Tuberia INTERIOR | D12: serie 5 | E12: Ke | F12: =IF((SUM(V9:V13))<20,0.682*((SUM(V9:V13))^0.45)-0.14,1.7*((SUM(V9:V13))^0.21)-0.7)/(SUM(V9:V13)) -> 0.11 | H12: =T18 -> VIVIENDA TIPO D | J12: =T19 -> Cocina + 3 baños (2 duchas + bañera) | K12: 0 | L12: =K12*U36 -> 0.00 | N12: 1 | O12: Piscina | P12: 2.00 | Q12: =N12*P12 -> 2.00 | R12: =IF(X12<13.1,16,IF($C$46="Cobre",INDEX(Tablas!$B$137:$B$146,MATCH(X12,Tablas!$C$137:$C$146,1)+1,1),INDEX(Tablas!$S$98:$S$111,MATCH(X12,Tablas!$R$98:$R$111,1)+1,1))) -> 40 | T12: =H12 -> VIVIENDA TIPO D | U12: 5 | V12: =V36*K12 -> 0.00 | X12: =(4000*P12/(3.1416*$D$11))^0.5 -> 29.13 | Y12: =IF($C$46="Cobre",VLOOKUP($R$9,Tablas!$B$137:$C$146,2,FALSE),INDEX(Tablas!$R$98:$R$111,MATCH(IF(X12<13,13,X12),Tablas!$R$98:$R$111,1)+1,1)) -> 32.7 | Z12: =4000*P12/(3.1416*Y12*Y12) -> 2.381461657
B13: Q simul AF | D13: =(L14+Q14)*E13 -> 3.14 l/s | E13: =IF(D10="UNE 149.201/07",F10,F9) -> 0.06 | H13: =Y18 -> VIVIENDA TIPO E | J13: =Y19 -> Cocina + 1 baño | K13: 0 | L13: =K13*Z36 -> 0.00 | N13: 0 | O13: Vestuarios | P13: 0.00 | Q13: =N13*P13 -> 0.00 | R13: =IF(X13<13.1,16,IF($C$46="Cobre",INDEX(Tablas!$B$137:$B$146,MATCH(X13,Tablas!$C$137:$C$146,1)+1,1),INDEX(Tablas!$S$98:$S$111,MATCH(X13,Tablas!$R$98:$R$111,1)+1,1))) -> 16 | T13: =H13 -> VIVIENDA TIPO E | U13: 5 | V13: =AA36*K13 -> 0.00 | X13: =(4000*P13/(3.1416*$D$11))^0.5 -> 0.00 | Y13: =IF($C$46="Cobre",VLOOKUP($R$9,Tablas!$B$137:$C$146,2,FALSE),INDEX(Tablas!$R$98:$R$111,MATCH(IF(X13<13,13,X13),Tablas!$R$98:$R$111,1)+1,1)) -> 13.1 | Z13: =4000*P13/(3.1416*Y13*Y13) -> 0
B14: Q simul ACS | D14: =SUM(V9:V13)*E14 -> 2.59 l/s | E14: =IF(D10="UNE 149.201/07",F12,F11) -> 0.11 | K14: =SUM(K9:K13) -> 25 | L14: =SUM(L9:L13) -> 42.25 | N14: =SUM(N9:N13) -> 4 | P14: =SUM(P9:P13) -> 6.05 | Q14: =SUM(Q9:Q13) -> 6.05 | U14: =SUM(U9:U13) -> 54 | V14: =SUM(V9:V13) -> 23.25
C16: 2.- CONSUMOS TIPO. Caudal instantáneo según CTE-HS4
D18: VIVIENDA TIPO A | J18: VIVIENDA TIPO B | O18: VIVIENDA TIPO C | T18: VIVIENDA TIPO D | Y18: VIVIENDA TIPO E
D19: Cocina + 2 baños (ducha + bañera) | J19: Duplex Cocina + 3 baños (2xducha + bañera) | O19: Cocina + 2 baños (ducha + bañera) + aseo | T19: Cocina + 3 baños (2 duchas + bañera) | Y19: Cocina + 1 baño
C20: =SUM(C21:C31) -> 11 Uds | D20: Tipo de aparato | E20: Caudal AF (dm3/s) | F20: Caudal ACS (dm3/s) | I20: =SUM(I21:I31) -> 12 Uds | J20: Tipo de aparato | K20: Caudal AF (dm3/s) | L20: Caudal ACS (dm3/s) | N20: =SUM(N21:N31) -> 13 Uds | O20: Tipo de aparato | P20: Caudal AF (dm3/s) | Q20: Caudal ACS (dm3/s) | S20: =SUM(S21:S31) -> 15 Uds | T20: Tipo de aparato | U20: Caudal AF (dm3/s) | V20: Caudal ACS (dm3/s) | X20: =SUM(X21:X31) -> 7 Uds | Y20: Tipo de aparato | Z20: Caudal AF (dm3/s) | AA20: Caudal ACS (dm3/s)
C21: 1 | D21: Ducha | E21: =IF(D21="",0,C21*VLOOKUP(D21,Tablas!$B$6:$D$26,2,FALSE)) -> 0.20 | F21: =IF(D21="",0,C21*VLOOKUP(D21,Tablas!$B$6:$D$26,3,FALSE)) -> 0.10 | I21: 2 | J21: Ducha | K21: =IF(J21="",0,I21*VLOOKUP(J21,Tablas!$B$6:$D$26,2,FALSE)) -> 0.40 | L21: =IF(J21="",0,I21*VLOOKUP(J21,Tablas!$B$6:$D$26,3,FALSE)) -> 0.20 | N21: 1 | O21: Ducha | P21: =IF(O21="",0,N21*VLOOKUP(O21,Tablas!$B$6:$D$26,2,FALSE)) -> 0.20 | Q21: =IF(O21="",0,N21*VLOOKUP(O21,Tablas!$B$6:$D$26,3,FALSE)) -> 0.10 | S21: 2 | T21: Ducha | U21: =IF(T21="",0,S21*VLOOKUP(T21,Tablas!$B$6:$D$26,2,FALSE)) -> 0.40 | V21: =IF(T21="",0,S21*VLOOKUP(T21,Tablas!$B$6:$D$26,3,FALSE)) -> 0.20 | X21: 0 | Y21: Ducha | Z21: =IF(Y21="",0,X21*VLOOKUP(Y21,Tablas!$B$6:$D$26,2,FALSE)) -> 0.00 | AA21: =IF(Y21="",0,X21*VLOOKUP(Y21,Tablas!$B$6:$D$26,3,FALSE)) -> 0.00
C22: 2 | D22: Inodoro con cisterna | E22: =IF(D22="",0,C22*VLOOKUP(D22,Tablas!$B$6:$D$26,2,FALSE)) -> 0.20 | F22: =IF(D22="",0,C22*VLOOKUP(D22,Tablas!$B$6:$D$26,3,FALSE)) -> 0.00 | I22: 2 | J22: Inodoro con cisterna | K22: =IF(J22="",0,I22*VLOOKUP(J22,Tablas!$B$6:$D$26,2,FALSE)) -> 0.20 | L22: =IF(J22="",0,I22*VLOOKUP(J22,Tablas!$B$6:$D$26,3,FALSE)) -> 0.00 | N22: 3 | O22: Inodoro con cisterna | P22: =IF(O22="",0,N22*VLOOKUP(O22,Tablas!$B$6:$D$26,2,FALSE)) -> 0.30 | Q22: =IF(O22="",0,N22*VLOOKUP(O22,Tablas!$B$6:$D$26,3,FALSE)) -> 0.00 | S22: 3 | T22: Inodoro con cisterna | U22: =IF(T22="",0,S22*VLOOKUP(T22,Tablas!$B$6:$D$26,2,FALSE)) -> 0.30 | V22: =IF(T22="",0,S22*VLOOKUP(T22,Tablas!$B$6:$D$26,3,FALSE)) -> 0.00 | X22: 1 | Y22: Inodoro con cisterna | Z22: =IF(Y22="",0,X22*VLOOKUP(Y22,Tablas!$B$6:$D$26,2,FALSE)) -> 0.10 | AA22: =IF(Y22="",0,X22*VLOOKUP(Y22,Tablas!$B$6:$D$26,3,FALSE)) -> 0.00
C23: 2 | D23: Lavabo | E23: =IF(D23="",0,C23*VLOOKUP(D23,Tablas!$B$6:$D$26,2,FALSE)) -> 0.20 | F23: =IF(D23="",0,C23*VLOOKUP(D23,Tablas!$B$6:$D$26,3,FALSE)) -> 0.13 | I23: 2 | J23: Lavabo | K23: =IF(J23="",0,I23*VLOOKUP(J23,Tablas!$B$6:$D$26,2,FALSE)) -> 0.20 | L23: =IF(J23="",0,I23*VLOOKUP(J23,Tablas!$B$6:$D$26,3,FALSE)) -> 0.13 | N23: 3 | O23: Lavabo | P23: =IF(O23="",0,N23*VLOOKUP(O23,Tablas!$B$6:$D$26,2,FALSE)) -> 0.30 | Q23: =IF(O23="",0,N23*VLOOKUP(O23,Tablas!$B$6:$D$26,3,FALSE)) -> 0.20 | S23: 3 | T23: Lavabo | U23: =IF(T23="",0,S23*VLOOKUP(T23,Tablas!$B$6:$D$26,2,FALSE)) -> 0.30 | V23: =IF(T23="",0,S23*VLOOKUP(T23,Tablas!$B$6:$D$26,3,FALSE)) -> 0.20 | X23: 1 | Y23: Lavabo | Z23: =IF(Y23="",0,X23*VLOOKUP(Y23,Tablas!$B$6:$D$26,2,FALSE)) -> 0.10 | AA23: =IF(Y23="",0,X23*VLOOKUP(Y23,Tablas!$B$6:$D$26,3,FALSE)) -> 0.07
C24: 2 | D24: Bidé | E24: =IF(D24="",0,C24*VLOOKUP(D24,Tablas!$B$6:$D$26,2,FALSE)) -> 0.20 | F24: =IF(D24="",0,C24*VLOOKUP(D24,Tablas!$B$6:$D$26,3,FALSE)) -> 0.13 | I24: 2 | J24: Bidé | K24: =IF(J24="",0,I24*VLOOKUP(J24,Tablas!$B$6:$D$26,2,FALSE)) -> 0.20 | L24: =IF(J24="",0,I24*VLOOKUP(J24,Tablas!$B$6:$D$26,3,FALSE)) -> 0.13 | N24: 2 | O24: Bidé | P24: =IF(O24="",0,N24*VLOOKUP(O24,Tablas!$B$6:$D$26,2,FALSE)) -> 0.20 | Q24: =IF(O24="",0,N24*VLOOKUP(O24,Tablas!$B$6:$D$26,3,FALSE)) -> 0.13 | S24: 3 | T24: Bidé | U24: =IF(T24="",0,S24*VLOOKUP(T24,Tablas!$B$6:$D$26,2,FALSE)) -> 0.30 | V24: =IF(T24="",0,S24*VLOOKUP(T24,Tablas!$B$6:$D$26,3,FALSE)) -> 0.20 | X24: 1 | Y24: Bidé | Z24: =IF(Y24="",0,X24*VLOOKUP(Y24,Tablas!$B$6:$D$26,2,FALSE)) -> 0.10 | AA24: =IF(Y24="",0,X24*VLOOKUP(Y24,Tablas!$B$6:$D$26,3,FALSE)) -> 0.07
C25: 1 | D25: Bañera 1,40 o más | E25: =IF(D25="",0,C25*VLOOKUP(D25,Tablas!$B$6:$D$26,2,FALSE)) -> 0.30 | F25: =IF(D25="",0,C25*VLOOKUP(D25,Tablas!$B$6:$D$26,3,FALSE)) -> 0.20 | I25: 1 | J25: Bañera 1,40 o más | K25: =IF(J25="",0,I25*VLOOKUP(J25,Tablas!$B$6:$D$26,2,FALSE)) -> 0.30 | L25: =IF(J25="",0,I25*VLOOKUP(J25,Tablas!$B$6:$D$26,3,FALSE)) -> 0.20 | N25: 1 | O25: Bañera 1,40 o más | P25: =IF(O25="",0,N25*VLOOKUP(O25,Tablas!$B$6:$D$26,2,FALSE)) -> 0.30 | Q25: =IF(O25="",0,N25*VLOOKUP(O25,Tablas!$B$6:$D$26,3,FALSE)) -> 0.20 | S25: 1 | T25: Bañera 1,40 o más | U25: =IF(T25="",0,S25*VLOOKUP(T25,Tablas!$B$6:$D$26,2,FALSE)) -> 0.30 | V25: =IF(T25="",0,S25*VLOOKUP(T25,Tablas!$B$6:$D$26,3,FALSE)) -> 0.20 | X25: 1 | Y25: Bañera 1,40 o más | Z25: =IF(Y25="",0,X25*VLOOKUP(Y25,Tablas!$B$6:$D$26,2,FALSE)) -> 0.30 | AA25: =IF(Y25="",0,X25*VLOOKUP(Y25,Tablas!$B$6:$D$26,3,FALSE)) -> 0.20
E26: =IF(D26="",0,C26*VLOOKUP(D26,Tablas!$B$6:$D$26,2,FALSE)) -> 0.00 | F26: =IF(D26="",0,C26*VLOOKUP(D26,Tablas!$B$6:$D$26,3,FALSE)) -> 0.00 | K26: =IF(J26="",0,I26*VLOOKUP(J26,Tablas!$B$6:$D$26,2,FALSE)) -> 0.00 | L26: =IF(J26="",0,I26*VLOOKUP(J26,Tablas!$B$6:$D$26,3,FALSE)) -> 0.00 | P26: =IF(O26="",0,N26*VLOOKUP(O26,Tablas!$B$6:$D$26,2,FALSE)) -> 0.00 | Q26: =IF(O26="",0,N26*VLOOKUP(O26,Tablas!$B$6:$D$26,3,FALSE)) -> 0.00 | U26: =IF(T26="",0,S26*VLOOKUP(T26,Tablas!$B$6:$D$26,2,FALSE)) -> 0.00 | V26: =IF(T26="",0,S26*VLOOKUP(T26,Tablas!$B$6:$D$26,3,FALSE)) -> 0.00 | Z26: =IF(Y26="",0,X26*VLOOKUP(Y26,Tablas!$B$6:$D$26,2,FALSE)) -> 0.00 | AA26: =IF(Y26="",0,X26*VLOOKUP(Y26,Tablas!$B$6:$D$26,3,FALSE)) -> 0.00
C27: 1 | D27: Fregadero domestico | E27: =IF(D27="",0,C27*VLOOKUP(D27,Tablas!$B$6:$D$26,2,FALSE)) -> 0.20 | F27: =IF(D27="",0,C27*VLOOKUP(D27,Tablas!$B$6:$D$26,3,FALSE)) -> 0.10 | I27: 1 | J27: Fregadero domestico | K27: =IF(J27="",0,I27*VLOOKUP(J27,Tablas!$B$6:$D$26,2,FALSE)) -> 0.20 | L27: =IF(J27="",0,I27*VLOOKUP(J27,Tablas!$B$6:$D$26,3,FALSE)) -> 0.10 | N27: 1 | O27: Fregadero domestico | P27: =IF(O27="",0,N27*VLOOKUP(O27,Tablas!$B$6:$D$26,2,FALSE)) -> 0.20 | Q27: =IF(O27="",0,N27*VLOOKUP(O27,Tablas!$B$6:$D$26,3,FALSE)) -> 0.10 | S27: 1 | T27: Fregadero domestico | U27: =IF(T27="",0,S27*VLOOKUP(T27,Tablas!$B$6:$D$26,2,FALSE)) -> 0.20 | V27: =IF(T27="",0,S27*VLOOKUP(T27,Tablas!$B$6:$D$26,3,FALSE)) -> 0.10 | X27: 1 | Y27: Fregadero domestico | Z27: =IF(Y27="",0,X27*VLOOKUP(Y27,Tablas!$B$6:$D$26,2,FALSE)) -> 0.20 | AA27: =IF(Y27="",0,X27*VLOOKUP(Y27,Tablas!$B$6:$D$26,3,FALSE)) -> 0.10
C28: 1 | D28: Lavavajillas domésticos | E28: =IF(D28="",0,C28*VLOOKUP(D28,Tablas!$B$6:$D$26,2,FALSE)) -> 0.15 | F28: =IF(D28="",0,C28*VLOOKUP(D28,Tablas!$B$6:$D$26,3,FALSE)) -> 0.10 | I28: 1 | J28: Lavavajillas domésticos | K28: =IF(J28="",0,I28*VLOOKUP(J28,Tablas!$B$6:$D$26,2,FALSE)) -> 0.15 | L28: =IF(J28="",0,I28*VLOOKUP(J28,Tablas!$B$6:$D$26,3,FALSE)) -> 0.10 | N28: 1 | O28: Lavavajillas domésticos | P28: =IF(O28="",0,N28*VLOOKUP(O28,Tablas!$B$6:$D$26,2,FALSE)) -> 0.15 | Q28: =IF(O28="",0,N28*VLOOKUP(O28,Tablas!$B$6:$D$26,3,FALSE)) -> 0.10 | S28: 1 | T28: Lavavajillas domésticos | U28: =IF(T28="",0,S28*VLOOKUP(T28,Tablas!$B$6:$D$26,2,FALSE)) -> 0.15 | V28: =IF(T28="",0,S28*VLOOKUP(T28,Tablas!$B$6:$D$26,3,FALSE)) -> 0.10 | X28: 1 | Y28: Lavavajillas domésticos | Z28: =IF(Y28="",0,X28*VLOOKUP(Y28,Tablas!$B$6:$D$26,2,FALSE)) -> 0.15 | AA28: =IF(Y28="",0,X28*VLOOKUP(Y28,Tablas!$B$6:$D$26,3,FALSE)) -> 0.10
C29: 1 | D29: Lavavadora doméstica | E29: =IF(D29="",0,C29*VLOOKUP(D29,Tablas!$B$6:$D$26,2,FALSE)) -> 0.20 | F29: =IF(D29="",0,C29*VLOOKUP(D29,Tablas!$B$6:$D$26,3,FALSE)) -> 0.15 | I29: 1 | J29: Lavavadora doméstica | K29: =IF(J29="",0,I29*VLOOKUP(J29,Tablas!$B$6:$D$26,2,FALSE)) -> 0.20 | L29: =IF(J29="",0,I29*VLOOKUP(J29,Tablas!$B$6:$D$26,3,FALSE)) -> 0.15 | N29: 1 | O29: Lavavadora doméstica | P29: =IF(O29="",0,N29*VLOOKUP(O29,Tablas!$B$6:$D$26,2,FALSE)) -> 0.20 | Q29: =IF(O29="",0,N29*VLOOKUP(O29,Tablas!$B$6:$D$26,3,FALSE)) -> 0.15 | S29: 1 | T29: Lavavadora doméstica | U29: =IF(T29="",0,S29*VLOOKUP(T29,Tablas!$B$6:$D$26,2,FALSE)) -> 0.20 | V29: =IF(T29="",0,S29*VLOOKUP(T29,Tablas!$B$6:$D$26,3,FALSE)) -> 0.15 | X29: 1 | Y29: Lavavadora doméstica | Z29: =IF(Y29="",0,X29*VLOOKUP(Y29,Tablas!$B$6:$D$26,2,FALSE)) -> 0.20 | AA29: =IF(Y29="",0,X29*VLOOKUP(Y29,Tablas!$B$6:$D$26,3,FALSE)) -> 0.15
C30: 0 | D30: Grifo aislado (solo AF) | E30: =IF(D30="",0,C30*VLOOKUP(D30,Tablas!$B$6:$D$26,2,FALSE)) -> 0.00 | F30: =IF(D30="",0,C30*VLOOKUP(D30,Tablas!$B$6:$D$26,3,FALSE)) -> 0.00 | I30: 0 | J30: Grifo aislado (solo AF) | K30: =IF(J30="",0,I30*VLOOKUP(J30,Tablas!$B$6:$D$26,2,FALSE)) -> 0.00 | L30: =IF(J30="",0,I30*VLOOKUP(J30,Tablas!$B$6:$D$26,3,FALSE)) -> 0.00 | N30: 0 | O30: Grifo aislado (solo AF) | P30: =IF(O30="",0,N30*VLOOKUP(O30,Tablas!$B$6:$D$26,2,FALSE)) -> 0.00 | Q30: =IF(O30="",0,N30*VLOOKUP(O30,Tablas!$B$6:$D$26,3,FALSE)) -> 0.00 | S30: 0 | T30: Grifo aislado (solo AF) | U30: =IF(T30="",0,S30*VLOOKUP(T30,Tablas!$B$6:$D$26,2,FALSE)) -> 0.00 | V30: =IF(T30="",0,S30*VLOOKUP(T30,Tablas!$B$6:$D$26,3,FALSE)) -> 0.00 | X30: 0 | Y30: Grifo aislado (solo AF) | Z30: =IF(Y30="",0,X30*VLOOKUP(Y30,Tablas!$B$6:$D$26,2,FALSE)) -> 0.00 | AA30: =IF(Y30="",0,X30*VLOOKUP(Y30,Tablas!$B$6:$D$26,3,FALSE)) -> 0.00
E31: =IF(D31="",0,C31*VLOOKUP(D31,Tablas!$B$6:$D$26,2,FALSE)) -> 0.00 | F31: =IF(D31="",0,C31*VLOOKUP(D31,Tablas!$B$6:$D$26,3,FALSE)) -> 0.00 | K31: =IF(J31="",0,I31*VLOOKUP(J31,Tablas!$B$6:$D$26,2,FALSE)) -> 0.00 | L31: =IF(J31="",0,I31*VLOOKUP(J31,Tablas!$B$6:$D$26,3,FALSE)) -> 0.00 | P31: =IF(O31="",0,N31*VLOOKUP(O31,Tablas!$B$6:$D$26,2,FALSE)) -> 0.00 | Q31: =IF(O31="",0,N31*VLOOKUP(O31,Tablas!$B$6:$D$26,3,FALSE)) -> 0.00 | U31: =IF(T31="",0,S31*VLOOKUP(T31,Tablas!$B$6:$D$26,2,FALSE)) -> 0.00 | V31: =IF(T31="",0,S31*VLOOKUP(T31,Tablas!$B$6:$D$26,3,FALSE)) -> 0.00 | Z31: =IF(Y31="",0,X31*VLOOKUP(Y31,Tablas!$B$6:$D$26,2,FALSE)) -> 0.00 | AA31: =IF(Y31="",0,X31*VLOOKUP(Y31,Tablas!$B$6:$D$26,3,FALSE)) -> 0.00
E33: =SUM(E21:E31) -> 1.65 | F33: =SUM(F21:F31) -> 0.91 | G33: dm3/s | K33: =SUM(K21:K31) -> 1.85 | L33: =SUM(L21:L31) -> 1.01 | P33: =SUM(P21:P31) -> 1.85 | Q33: =SUM(Q21:Q31) -> 0.98 | U33: =SUM(U21:U31) -> 2.15 | V33: =SUM(V21:V31) -> 1.14 | Z33: =SUM(Z21:Z31) -> 1.15 | AA33: =SUM(AA21:AA31) -> 0.68
E34: =E33*3600 -> 5940 | F34: =F33*3600 -> 3276 | G34: l/h | K34: =K33*3600 -> 6660 | L34: =L33*3600 -> 3636 | P34: =P33*3600 -> 6660 | Q34: =Q33*3600 -> 3510 | U34: =U33*3600 -> 7740 | V34: =V33*3600 -> 4104 | Z34: =Z33*3600 -> 4140 | AA34: =AA33*3600 -> 2448
E35: =E34/1000 -> 5.94 | F35: =F34/1000 -> 3.28 | G35: m3/h | K35: =K34/1000 -> 6.66 | L35: =L34/1000 -> 3.64 | P35: =P34/1000 -> 6.66 | Q35: =Q34/1000 -> 3.51 | U35: =U34/1000 -> 7.74 | V35: =V34/1000 -> 4.10 | Z35: =Z34/1000 -> 4.14 | AA35: =AA34/1000 -> 2.45
C36: nº unidades | D36: 1 | E36: =E33*D36 -> 1.65 | F36: =F33*D36 -> 0.91 | G36: dm3/s | I36: nº unidades | J36: 1 | K36: =K33*J36 -> 1.85 | L36: =L33*J36 -> 1.01 | N36: nº unidades | O36: 1 | P36: =P33*O36 -> 1.85 | Q36: =Q33*O36 -> 0.98 | S36: nº unidades | T36: 1 | U36: =U33*T36 -> 2.15 | V36: =V33*T36 -> 1.14 | X36: nº unidades | Y36: 1 | Z36: =Z33*Y36 -> 1.15 | AA36: =AA33*Y36 -> 0.68
C37: Caudal adicional | E37: 0.00 | F37: 0.00 | I37: Caudal adicional | K37: 0.00 | L37: 0.00 | N37: Caudal adicional | P37: 0.00 | Q37: 0.00 | S37: Caudal adicional | U37: 0.00 | V37: 0.00 | X37: Caudal adicional | Z37: 0.00 | AA37: 0.00
C39: Simultaneidad vivienda | E39: =Tablas!$I$37 -> 0.43 | F39: =Tablas!$H$37 -> 0.56 | I39: Simultaneidad vivienda | K39: =Tablas!$I$37 -> 0.43 | L39: =Tablas!$H$37 -> 0.56 | N39: Simultaneidad vivienda | P39: =Tablas!$I$37 -> 0.43 | Q39: =Tablas!$H$37 -> 0.56 | S39: Simultaneidad vivienda | U39: =Tablas!$I$37 -> 0.43 | V39: =Tablas!$H$37 -> 0.56 | X39: Simultaneidad vivienda | Z39: =Tablas!$I$37 -> 0.43 | AA39: =Tablas!$H$37 -> 0.56
C40: Simultaneidad varias unidades | E40: =F40 -> 1.00 | F40: =IF($D$10="UNE 149.201/07",1,MAX(0.2,(19+D32)/(10*(D32+1)))) -> 1.00 | I40: Simultaneidad varias unidades | K40: =L40 -> 1.00 | L40: =IF($D$10="UNE 149.201/07",1,MAX(0.2,(19+J32)/(10*(J32+1)))) -> 1.00 | N40: Simultaneidad varias unidades | P40: =Q40 -> 1.00 | Q40: =IF($D$10="UNE 149.201/07",1,MAX(0.2,(19+O32)/(10*(O32+1)))) -> 1.00 | S40: Simultaneidad varias unidades | U40: =V40 -> 1.00 | V40: =IF($D$10="UNE 149.201/07",1,MAX(0.2,(19+T32)/(10*(T32+1)))) -> 1.00 | X40: Simultaneidad varias unidades | Z40: =AA40 -> 1.00 | AA40: =IF($D$10="UNE 149.201/07",1,MAX(0.2,(19+Y32)/(10*(Y32+1)))) -> 1.00
D42: TOTAL SIMULTÁNEO (l/s) | E42: =E36*E39*E40 -> 0.71 | F42: =F36*F39*F40 -> 0.51 | G42: dm3/s | J42: TOTAL SIMULTÁNEO (l/s) | K42: =K36*K39*K40 -> 0.80 | L42: =L36*L39*L40 -> 0.57 | O42: TOTAL SIMULTÁNEO (l/s) | P42: =P36*P39*P40 -> 0.80 | Q42: =Q36*Q39*Q40 -> 0.55 | T42: TOTAL SIMULTÁNEO (l/s) | U42: =U36*U39*U40 -> 0.93 | V42: =V36*V39*V40 -> 0.64 | Y42: TOTAL SIMULTÁNEO (l/s) | Z42: =Z36*Z39*Z40 -> 0.50 | AA42: =AA36*AA39*AA40 -> 0.38
D44: Dim int. calculo (mm2) | E44: =(4000*E42/(3.1416*$D$11))^0.5 -> 17.41 | F44: =(4000*F42/(3.1416*$D$11))^0.5 -> 14.76 | J44: Dim int. calculo (mm2) | K44: =(4000*K42/(3.1416*$D$11))^0.5 -> 18.44 | L44: =(4000*L42/(3.1416*$D$11))^0.5 -> 15.56 | O44: Dim int. calculo (mm2) | P44: =(4000*P42/(3.1416*$D$11))^0.5 -> 18.44 | Q44: =(4000*Q42/(3.1416*$D$11))^0.5 -> 15.28 | T44: Dim int. calculo (mm2) | U44: =(4000*U42/(3.1416*$D$11))^0.5 -> 19.88 | V44: =(4000*V42/(3.1416*$D$11))^0.5 -> 16.53 | Y44: Dim int. calculo (mm2) | Z44: =(4000*Z42/(3.1416*$D$11))^0.5 -> 14.54 | AA44: =(4000*AA42/(3.1416*$D$11))^0.5 -> 12.76
C46: =IF($D$12=Tablas!$B$87,"Cobre","Termoplastico") -> Termoplastico | D46: Dim comercial (mm2) | E46: =IF($C$46="Cobre",INDEX(Tablas!$B$137:$B$146,MATCH(E44,Tablas!$C$137:$C$146,1)+1,1),INDEX(Tablas!$S$98:$S$111,MATCH(E44,Tablas!$R$98:$R$111,1)+1,1)) -> 25 | F46: =IF($C$46="Cobre",INDEX(Tablas!$B$137:$B$146,MATCH(F44,Tablas!$C$137:$C$146,1)+1,1),INDEX(Tablas!$S$98:$S$111,MATCH(F44,Tablas!$R$98:$R$111,1)+1,1)) -> 20 | I46: =IF($D$12=Tablas!$B$87,"Cobre","Termoplastico") -> Termoplastico | J46: Dim comercial (mm2) | K46: =IF($I$46="Cobre",INDEX(Tablas!$B$137:$B$146,MATCH(K44,Tablas!$C$137:$C$146,1)+1,1),INDEX(Tablas!$S$98:$S$111,MATCH(K44,Tablas!$R$98:$R$111,1)+1,1)) -> 25 | L46: =IF($I$46="Cobre",INDEX(Tablas!$B$137:$B$146,MATCH(L44,Tablas!$C$137:$C$146,1)+1,1),INDEX(Tablas!$S$98:$S$111,MATCH(L44,Tablas!$R$98:$R$111,1)+1,1)) -> 20 | N46: =IF($D$12=Tablas!$B$87,"Cobre","Termoplastico") -> Termoplastico | O46: Dim comercial (mm2) | P46: =IF($N$46="Cobre",INDEX(Tablas!$B$137:$B$146,MATCH(P44,Tablas!$C$137:$C$146,1)+1,1),INDEX(Tablas!$S$98:$S$111,MATCH(P44,Tablas!$R$98:$R$111,1)+1,1)) -> 25 | Q46: =IF($N$46="Cobre",INDEX(Tablas!$B$137:$B$146,MATCH(Q44,Tablas!$C$137:$C$146,1)+1,1),INDEX(Tablas!$S$98:$S$111,MATCH(Q44,Tablas!$R$98:$R$111,1)+1,1)) -> 20 | S46: =IF($D$12=Tablas!$B$87,"Cobre","Termoplastico") -> Termoplastico | T46: Dim comercial (mm2) | U46: =IF($S$46="Cobre",INDEX(Tablas!$B$137:$B$146,MATCH(U44,Tablas!$C$137:$C$146,1)+1,1),INDEX(Tablas!$S$98:$S$111,MATCH(U44,Tablas!$R$98:$R$111,1)+1,1)) -> 25 | V46: =IF($S$46="Cobre",INDEX(Tablas!$B$137:$B$146,MATCH(V44,Tablas!$C$137:$C$146,1)+1,1),INDEX(Tablas!$S$98:$S$111,MATCH(V44,Tablas!$R$98:$R$111,1)+1,1)) -> 25 | X46: =IF($D$12=Tablas!$B$87,"Cobre","Termoplastico") -> Termoplastico | Y46: Dim comercial (mm2) | Z46: =IF($X$46="Cobre",INDEX(Tablas!$B$137:$B$146,MATCH(Z44,Tablas!$C$137:$C$146,1)+1,1),INDEX(Tablas!$S$98:$S$111,MATCH(Z44,Tablas!$R$98:$R$111,1)+1,1)) -> 20 | AA46: =IF($X$46="Cobre",INDEX(Tablas!$B$137:$B$146,MATCH(AA44,Tablas!$C$137:$C$146,1)+1,1),INDEX(Tablas!$S$98:$S$111,MATCH(AA44,Tablas!$R$98:$R$111,1)+1,1)) -> 16
C47: =IF(C46<>Tablas!$B$87,"",IF(F48>2,"Velocidad excesiva","")) ->  | D47: Dim int. Comercial | E47: =IF($C$46="Cobre",VLOOKUP($E$46,Tablas!$B$137:$C$146,2,FALSE),INDEX(Tablas!$R$98:$R$111,MATCH(E44,Tablas!$R$98:$R$111,1)+1,1)) -> 20.50 | F47: =IF($C$46="Cobre",VLOOKUP($F$46,Tablas!$B$137:$C$146,2,FALSE),INDEX(Tablas!$R$98:$R$111,MATCH(F44,Tablas!$R$98:$R$111,1)+1,1)) -> 16.40 | I47: =IF(I46<>Tablas!$B$87,"",IF(L48>2,"Velocidad excesiva","")) ->  | J47: Dim int. Comercial | K47: =IF($C$46="Cobre",VLOOKUP($K$46,Tablas!$B$137:$C$146,2,FALSE),INDEX(Tablas!$R$98:$R$111,MATCH(K44,Tablas!$R$98:$R$111,1)+1,1)) -> 20.50 | L47: =IF($C$46="Cobre",VLOOKUP($L$46,Tablas!$B$137:$C$146,2,FALSE),INDEX(Tablas!$R$98:$R$111,MATCH(L44,Tablas!$R$98:$R$111,1)+1,1)) -> 16.40 | N47: =IF(N46<>Tablas!$B$87,"",IF(Q48>2,"Velocidad excesiva","")) ->  | O47: Dim int. Comercial | P47: =IF($C$46="Cobre",VLOOKUP($P$46,Tablas!$B$137:$C$146,2,FALSE),INDEX(Tablas!$R$98:$R$111,MATCH(P44,Tablas!$R$98:$R$111,1)+1,1)) -> 20.50 | Q47: =IF($C$46="Cobre",VLOOKUP($Q$46,Tablas!$B$137:$C$146,2,FALSE),INDEX(Tablas!$R$98:$R$111,MATCH(Q44,Tablas!$R$98:$R$111,1)+1,1)) -> 16.40 | S47: =IF(S46<>Tablas!$B$87,"",IF(V48>2,"Velocidad excesiva","")) ->  | T47: Dim int. Comercial | U47: =IF($C$46="Cobre",VLOOKUP($U$46,Tablas!$B$137:$C$146,2,FALSE),INDEX(Tablas!$R$98:$R$111,MATCH(U44,Tablas!$R$98:$R$111,1)+1,1)) -> 20.50 | V47: =IF($C$46="Cobre",VLOOKUP($V$46,Tablas!$B$137:$C$146,2,FALSE),INDEX(Tablas!$R$98:$R$111,MATCH(V44,Tablas!$R$98:$R$111,1)+1,1)) -> 20.50 | X47: =IF(X46<>Tablas!$B$87,"",IF(AA48>2,"Velocidad excesiva","")) ->  | Y47: Dim int. Comercial | Z47: =IF($C$46="Cobre",VLOOKUP($Z$46,Tablas!$B$137:$C$146,2,FALSE),INDEX(Tablas!$R$98:$R$111,MATCH(Z44,Tablas!$R$98:$R$111,1)+1,1)) -> 16.40 | AA47: =IF($C$46="Cobre",VLOOKUP($AA$46,Tablas!$B$137:$C$146,2,FALSE),INDEX(Tablas!$R$98:$R$111,MATCH(AA44,Tablas!$R$98:$R$111,1)+1,1)) -> 13.10
C48: =IF(C46<>"Termoplastico",IF('Consumos TIPO'!F48>3.5,"Velocidad excesiva",""),"") ->  | D48: Velocidad suministro | E48: =4000*E42/(3.1416*E47*E47) -> 2.16 | F48: =4000*F42/(3.1416*F47*F47) -> 2.43 | I48: =IF(I46<>"Termoplastico",IF('Consumos TIPO'!L48>3.5,"Velocidad excesiva",""),"") ->  | J48: Velocidad suministro | K48: =4000*K42/(3.1416*K47*K47) -> 2.43 | L48: =4000*L42/(3.1416*L47*L47) -> 2.70 | N48: =IF(N46<>"Termoplastico",IF('Consumos TIPO'!Q48>3.5,"Velocidad excesiva",""),"") ->  | O48: Velocidad suministro | P48: =4000*P42/(3.1416*P47*P47) -> 2.43 | Q48: =4000*Q42/(3.1416*Q47*Q47) -> 2.61 | S48: =IF(S46<>"Termoplastico",IF('Consumos TIPO'!V48>3.5,"Velocidad excesiva",""),"") ->  | T48: Velocidad suministro | U48: =4000*U42/(3.1416*U47*U47) -> 2.82 | V48: =4000*V42/(3.1416*V47*V47) -> 1.95 | X48: =IF(X46<>"Termoplastico",IF('Consumos TIPO'!AA48>3.5,"Velocidad excesiva",""),"") ->  | Y48: Velocidad suministro | Z48: =4000*Z42/(3.1416*Z47*Z47) -> 2.36 | AA48: =4000*AA42/(3.1416*AA47*AA47) -> 2.85

Sheet Tramos AF
B2: Altura max entre suminstro y consumo | D2: 17.00 m | F2: INSTALACIÓN DE AGUA FRÍA | T2: Medición de tuberias según diámetro
B3: Pres. mín. en punto suministro | D3: 1.00 bar | T3: 12 | U3: 16 | V3: 20 | X3: 25 | Y3: 32 | Z3: 40 | AA3: 50 | AB3: 63 | AC3: 75 | AE3: 90 | AF3: 110 | AG3: 125 | AH3: 140 | AI3: 160
B4: Pres. max. en punto suministro | D4: 5.00 bar | T4: =SUM(BS:BS) -> 0 | U4: =SUM(BT:BT) -> 0 | V4: =SUM(BU:BU) -> 0 | X4: =SUM(BV:BV) -> 0 | Y4: =SUM(BW:BW) -> 0 | Z4: =SUM(BX:BX) -> 0 | AA4: =SUM(BY:BY) -> 22 | AB4: =SUM(BZ:BZ) -> 0 | AC4: =SUM(CA:CA) -> 0 | AE4: =SUM(CB:CB) -> 0 | AF4: =SUM(CC:CC) -> 0 | AG4: =SUM(CD:CD) -> 0 | AH4: =SUM(CE:CE) -> 0 | AI4: =SUM(CF:CF) -> 0
B5: Presión max. equipo bombeo | D5: ='Grupo AF'!D29 -> 6.72 bar | AZ5: regimen
B6: Perdida de carga tramo + desfavorable | D6: =SUM(BA:BA) -> 6.32 mca | AZ6: turbulento
AW7: Habitual | AZ7: agua fria
A8: 1
B9: Tramo | D9: Consumos tipo | E9: Unidades | F9: Consumo | G9: Consumo | H9: Otros Consumos | I9: Caudal | J9: Uso | K9: Qu | L9: fila | M9: suplemento | N9: fila | O9: fila | P9: fila | Q9: Coef. | R9: Coef. | S9: Coef. | T9: Q l/s | U9: Q l/s | V9: K | X9: Velocidad | Y9: Diámetro | Z9: Diámetro | AA9: Diámetro | AB9: Diámetro | AC9: Velocidad | AE9: Pérdida | AF9: Pérdida | AG9: +25% | AH9: Pérdida | AI9: Pérdida | AK9: ID | AL9: Presion | AM9: Presion | AO9: Viscos. | AP9: Rugosidad | AQ9: Número | AR9: Factor | AS9: Coef. | AT9: Coef. | AU9: Perdida | AV9: Perdida | AW9: Perdida | AX9: Flamant | AY9: Perdida | AZ9: Perdida | BA9: Suma a | BC9: 1 | BD9: =BC9+1 -> 2 | BE9: =BD9+1 -> 3 | BF9: 4 | BG9: 5 | BH9: 6 | BI9: 7 | BJ9: 8 | BK9: 9 | BL9: 10 | BM9: 11 | BN9: 12 | BO9: 13 | BP9: 14 | BS9: =BC14 -> 0 | BT9: =BD14 -> 0 | BU9: 0 | BV9: 0 | BW9: 0 | BX9: 0 | BY9: 22 | BZ9: 0 | CA9: 0 | CB9: 0 | CC9: 0 | CD9: 0 | CE9: 0 | CF9: 0
A10: 1 | B10: Descripcion | E10: de cada | F10: x unidad | G10: instalado | I10: Otros | K10: mayor | L10: tipo | M10: fila | N10: distinto | O10: escuelas | P10: busqueda | Q10: A | R10: B | S10: C | T10: TOTAL | U10: simult. | V10: Simult. | X10: Teórica | Y10: Teórico Int | Z10: Nom. Ext. | AA10: Nom. Ext. | AB10: Nom. Int. | AC10: Real | AE10: Tubería | AF10: Tubería | AG10: Accesorios | AH10: Total | AI10: TOTAL | AK10: Tramo | AL10: Inicial | AM10: residual | AO10: agua | AP10: Absoluta | AQ10: Reynols | AR10: K/d | AS10: rugosidad | AT10: rugosidad | AU10: Carga | AV10: según | AW10: según | AX10: para ACS | AY10: según | AZ10: según | BA10: tramo | BC10: 12 | BD10: 16 | BE10: 20 | BF10: 25 | BG10: 32 | BH10: 40 | BI10: 50 | BJ10: 63 | BK10: 75 | BL10: 90 | BM10: 110 | BN10: 125 | BO10: 140 | BP10: 160
E11: tipologia | F11: (l/s) | G11: (l/s) | I11: (l/s) | L11: edificio | N11: escuelas | T11: (l/s) | U11: UNE 149 | V11: UNE 149 | X11: (m/s) | Y11: (mm) | Z11: CALCULO | AA11: SELEC. | AB11: (mm) | AC11: (m/s) | AE11: (mca/m) | AF11: (mca) | AG11: (mca) | AH11: (mca) | AI11: (KPa) | AK11: Anterior | AL11: (bar) | AM11: (bar) | AO11: (cm2/seg) | AP11: (mm) | AS11: 1 / l^0,5 | AT11: Lamda | AU11: (mca/m) | AV11: Hazen | AW11: Flamant | AX11: Cu, 70ºC | AY11: Blasius | AZ11: Manning | BA11: + desfav. | BC11: =INDEX(Tablas!$C$98:$P$111,BC9,BC12) -> 8.80 | BD11: =INDEX(Tablas!$C$98:$P$111,BD9,BD12) -> 11.70 | BE11: =INDEX(Tablas!$C$98:$P$111,BE9,BE12) -> 14.60 | BF11: =INDEX(Tablas!$C$98:$P$111,BF9,BF12) -> 18.20 | BG11: =INDEX(Tablas!$C$98:$P$111,BG9,BG12) -> 23.40 | BH11: =INDEX(Tablas!$C$98:$P$111,BH9,BH12) -> 29.20 | BI11: =INDEX(Tablas!$C$98:$P$111,BI9,BI12) -> 36.50 | BJ11: =INDEX(Tablas!$C$98:$P$111,BJ9,BJ12) -> 46.00 | BK11: =INDEX(Tablas!$C$98:$P$111,BK9,BK12) -> 54.70 | BL11: =INDEX(Tablas!$C$98:$P$111,BL9,BL12) -> 65.70 | BM11: =INDEX(Tablas!$C$98:$P$111,BM9,BM12) -> 80.30 | BN11: =INDEX(Tablas!$C$98:$P$111,BN9,BN12) -> 91.20 | BO11: =INDEX(Tablas!$C$98:$P$111,BO9,BO12) -> 102.20 | BP11: =INDEX(Tablas!$C$98:$P$111,BP9,BP12) -> 116.80
B12: ACS/Solar | D12: ='Consumos TIPO'!$H$9 -> VIVIENDA TIPO A | E12: 20 | F12: =IF(E12=0,0,'Consumos TIPO'!$E$36+'Consumos TIPO'!$E$37) -> 1.65 | G12: =E12*F12 -> 33.00 | H12: ='Consumos TIPO'!$O$9 -> Basuras + Baldeo | I12: 0.00 | J12: ='Consumos TIPO'!$D$7 -> Viviendas | K12: =Tablas!D47 -> 0.30 | L12: =VLOOKUP(J12,Tablas!$I$60:$K$65,3,FALSE) -> 1.00 | M12: =IF(G12>20,3,IF(K12<0.5,0,IF(G12<=1,1,2))) -> 3.00 | N12: =L12+M12 -> 4.00 | O12: =1+IF(G12<=1.5,0,IF(G12<=20,1,2)) -> 3.00 | P12: =IF(J12=Tablas!I65,O12,N12) -> 4.00 | Q12: =INDEX(Tablas!$E$59:$G$81,P12,1) -> 1.70 | R12: =INDEX(Tablas!$E$59:$G$81,P12,2) -> 0.21 | S12: =INDEX(Tablas!$E$59:$G$81,P12,3) -> -0.70 | U12: =IF(G12=0,0,POWER(G12,R12)*Q12+S12) -> 2.84 | V12: =IF(G12=0,0,U12/G12) -> 0.09 | X12: 3.00 | Y12: =(4000*U17/(3.1416*$X$12))^0.5 -> 36 | Z12: =INDEX(Tablas!$S$98:$S$111,MATCH(Y12,BC11:BP11,1)+1,1) -> 50 | AA12: =Z12 -> 50 | AB12: =INDEX(Tablas!$C$98:$P$111,MATCH(AA12,Tablas!$B$98:$B$111,0),MATCH(Y15,Tablas!$C$96:$P$96,0)) -> 37 | AC12: =4000*U17/(PI()*AB12*AB12) -> 2.95 | AE12: =IFERROR(AU12,AW12) -> 0.23 | AF12: =AE12*(B16+C16) -> 5.06 | AG12: =AF12*0.25 -> 1.26 | AH12: =AF12+AG12 -> 6.32 | AI12: =AH12*9.8 -> 61.96 | AK12: inicio | AL12: =IF(AK12="inicio",$D$5,INDEX($AM$9:$AM$11043,MATCH(AK12,$A$9:$A$11043,0)+2,1)) -> 6.72 | AM12: =AL12-(C16*0.098)-(AH12*0.098) -> 5.81 | AO12: =VLOOKUP('Consumos TIPO'!$D$8,'Propiedades agua'!$A$7:$K$27,5,FALSE)/100 -> 0.01308 | AP12: =VLOOKUP(Y14,Tablas!$B$115:$C$125,2,FALSE) -> 0.0015 | AQ12: =9.99*AC12*AB12/AO12 -> 82136.75122 | AR12: =AP12/AB12 -> 4.109589041e-05 | AS12: =-2*LOG10((2.51*AS12/AQ12)+AR12/3.71) -> 7.265 | AT12: =1/(AS12*AS12) -> 0.0189466536 | AU12: =(AT12/AB12)*(AC12*AC12/(2*9.8))*1000 -> 0.2299097578 | AV12: =10.674*((U17/1000)^1.852/(140^1.852*(AB12/1000)^4.781)) -> 0.1892058166 | AW12: =(0.00056)*((AC12)^(7/4))/((AB12/1000)^(5/4)) -> 0.2325808981 | AX12: =378*((U17*3600)^1.75)/(AB12^4.75)/1000 -> 0.172113321 | AY12: =(0.316/(AQ12^0.25))*999*AC12^2/(2*(AB12/1000))/10000 -> 0.221752822 | AZ12: =10.3*(AS12^2*0.000001)*((U17/1000)^2/((AB12/1000)^5.33)) -> 0.237798323 | BA12: =IF(C14="NO",0,AH12) -> 6.32 | BC12: =HLOOKUP(Y15,Tablas!$C$87:$I$94,8,FALSE) -> 6 | BD12: =BC12 -> 6 | BE12: =BD12 -> 6 | BF12: 6 | BG12: 6 | BH12: 6 | BI12: 6 | BJ12: 6 | BK12: 6 | BL12: 6 | BM12: 6 | BN12: 6 | BO12: 6 | BP12: 6
D13: ='Consumos TIPO'!$H$10 -> VIVIENDA TIPO B | E13: 5 | F13: =IF(E13=0,0,'Consumos TIPO'!$K$36+'Consumos TIPO'!$K$37) -> 1.85 | G13: =E13*F13 -> 9.25 | H13: ='Consumos TIPO'!$O$10 -> Riego | I13: 0.00 | J13: =J12 -> Viviendas | K13: =Tablas!G47 -> 0.40 | L13: =VLOOKUP(J13,Tablas!$I$60:$K$65,3,FALSE) -> 1.00 | M13: =IF(G13>20,3,IF(K13<0.5,0,IF(G13<=1,1,2))) -> 0.00 | N13: 1.00 | O13: 2.00 | P13: =IF(J13=Tablas!I66,O13,N13) -> 1.00 | Q13: =INDEX(Tablas!$E$59:$G$81,P13,1) -> 0.68 | R13: =INDEX(Tablas!$E$59:$G$81,P13,2) -> 0.45 | S13: =INDEX(Tablas!$E$59:$G$81,P13,3) -> -0.14 | U13: =IF(G13=0,0,POWER(G13,R13)*Q13+S13) -> 1.72 | V13: =IF(G13=0,0,U13/G13) -> 0.19 | BC13: =IF(BC10=Z12,1,0) -> 0 | BD13: =IF(BD10=AA12,1,0) -> 0 | BE13: =IF(BE10=AA12,1,0) -> 0 | BF13: =IF(BF10=AA12,1,0) -> 0 | BG13: =IF(BG10=AA12,1,0) -> 0 | BH13: =IF(BH10=AA12,1,0) -> 0 | BI13: =IF(BI10=AA12,1,0) -> 1 | BJ13: =IF(BJ10=AA12,1,0) -> 0 | BK13: =IF(BK10=AA12,1,0) -> 0 | BL13: =IF(BL10=AA12,1,0) -> 0 | BM13: =IF(BM10=AA12,1,0) -> 0 | BN13: =IF(BN10=AA12,1,0) -> 0 | BO13: =IF(BO10=AA12,1,0) -> 0 | BP13: =IF(BP10=AA12,1,0) -> 0
B14: Tramo desfavorable: | C14: SI | D14: ='Consumos TIPO'!$H$11 -> VIVIENDA TIPO C | E14: ='Consumos TIPO'!$K$11 -> 0 | F14: =IF(E14=0,0,'Consumos TIPO'!$P$36+'Consumos TIPO'!$P$37) -> 0.00 | G14: =E14*F14 -> 0.00 | H14: ='Consumos TIPO'!$O$11 -> Sala Solar | I14: ='Consumos TIPO'!P11 -> 2.85 | J14: =J13 -> Viviendas | K14: =Tablas!J47 -> 0.30 | L14: =VLOOKUP(J14,Tablas!$I$60:$K$65,3,FALSE) -> 1.00 | M14: =IF(G14>20,3,IF(K14<0.5,0,IF(G14<=1,1,2))) -> 0.00 | N14: 1.00 | O14: 1.00 | P14: =IF(J14=Tablas!I67,O14,N14) -> 1.00 | Q14: =INDEX(Tablas!$E$59:$G$81,P14,1) -> 0.68 | R14: =INDEX(Tablas!$E$59:$G$81,P14,2) -> 0.45 | S14: =INDEX(Tablas!$E$59:$G$81,P14,3) -> -0.14 | U14: =IF(G14=0,0,POWER(G14,R14)*Q14+S14) -> 0.00 | V14: =IF(G14=0,0,U14/G14) -> 0.00 | X14: Tipo: | Y14: HDPE (Polietileno de Alta Densidad) | BC14: =BC13*(B16+C16) -> 0 | BD14: =BD13*(B16+C16) -> 0 | BE14: =BE13*(B16+C16) -> 0 | BF14: =BF13*(B16+C16) -> 0 | BG14: =BG13*(B16+C16) -> 0 | BH14: =BH13*(B16+C16) -> 0 | BI14: =BI13*(B16+C16) -> 22 | BJ14: =BJ13*(B16+C16) -> 0 | BK14: =BK13*(B16+C16) -> 0 | BL14: =BL13*(B16+C16) -> 0 | BM14: =BM13*(B16+C16) -> 0 | BN14: =BN13*(B16+C16) -> 0 | BO14: =BO13*(B16+C16) -> 0 | BP14: =BP13*(B16+C16) -> 0
B15: Long. Horizontal | C15: Long. Vertical | D15: ='Consumos TIPO'!$H$12 -> VIVIENDA TIPO D | E15: ='Consumos TIPO'!$K$12 -> 0 | F15: =IF(E15=0,0,'Consumos TIPO'!$U$36+'Consumos TIPO'!$U$37) -> 0.00 | G15: =E15*F15 -> 0.00 | H15: ='Consumos TIPO'!$O$12 -> Piscina | I15: 0.00 | J15: =J14 -> Viviendas | K15: =Tablas!M47 -> 0.40 | L15: =VLOOKUP(J15,Tablas!$I$60:$K$65,3,FALSE) -> 1.00 | M15: =IF(G15>20,3,IF(K15<0.5,0,IF(G15<=1,1,2))) -> 0.00 | N15: 1.00 | O15: 1.00 | P15: =IF(J15=Tablas!I68,O15,N15) -> 1.00 | Q15: =INDEX(Tablas!$E$59:$G$81,P15,1) -> 0.68 | R15: =INDEX(Tablas!$E$59:$G$81,P15,2) -> 0.45 | S15: =INDEX(Tablas!$E$59:$G$81,P15,3) -> -0.14 | U15: =IF(G15=0,0,POWER(G15,R15)*Q15+S15) -> 0.00 | V15: =IF(G15=0,0,U15/G15) -> 0.00 | X15: Serie: | Y15: serie 3,2
B16: 19.00 m | C16: 3.00 m | D16: ='Consumos TIPO'!$H$13 -> VIVIENDA TIPO E | E16: ='Consumos TIPO'!$K$13 -> 0 | F16: =IF(E16=0,0,'Consumos TIPO'!$Z$36+'Consumos TIPO'!$Z$37) -> 0.00 | G16: =E16*F16 -> 0.00 | H16: ='Consumos TIPO'!$O$13 -> Vestuarios | I16: ='Consumos TIPO'!$Q$13 -> 0.00 | J16: =J15 -> Viviendas | K16: =Tablas!P47 -> 0.30 | L16: =VLOOKUP(J16,Tablas!$I$60:$K$65,3,FALSE) -> 1.00 | M16: =IF(G16>20,3,IF(K16<0.5,0,IF(G16<=1,1,2))) -> 0.00 | N16: 1.00 | O16: 1.00 | P16: =IF(J16=Tablas!I69,O16,N16) -> 1.00 | Q16: =INDEX(Tablas!$E$59:$G$81,P16,1) -> 0.68 | R16: =INDEX(Tablas!$E$59:$G$81,P16,2) -> 0.45 | S16: =INDEX(Tablas!$E$59:$G$81,P16,3) -> -0.14 | U16: =IF(G16=0,0,POWER(G16,R16)*Q16+S16) -> 0.00 | V16: =IF(G16=0,0,U16/G16) -> 0.00 | X16: =IF(INDEX(Tablas!$C$88:$I$93,MATCH(Y14,Tablas!$L$88:$L$93,0),MATCH(Y15,serie,0))="SI","","La serie no existe en el materail seleccionado") -> 
E17: =SUM(E12:E16) -> 25 | F17: TOTAL | G17: =SUM(G12:G16) -> 42.25 | I17: =SUM(I12:I16) -> 2.85 | J17: =J12 -> Viviendas | K17: =IF(E17=1,MAX(K12:K16),MAX(F12:F16,I12:I16)) -> 2.85 | L17: =VLOOKUP(J17,Tablas!$I$60:$K$65,3,FALSE) -> 1.00 | M17: =IF(G17>20,3,IF(K17<0.5,0,IF(G16<=1,1,2))) -> 3.00 | N17: 4.00 | O17: 3.00 | P17: =IF(J17=Tablas!I69,O17,N17) -> 4.00 | Q17: =INDEX(Tablas!$E$59:$G$81,P17,1) -> 1.70 | R17: =INDEX(Tablas!$E$59:$G$81,P17,2) -> 0.21 | S17: =INDEX(Tablas!$E$59:$G$81,P17,3) -> -0.70 | T17: =G17+I17 -> 45.10 | U17: =IF(T17=0,0,POWER(T17,R17)*Q17+S17) -> 3.08 | V17: =IF(T17=0,0,U17/T17) -> 0.07

Sheet Grupo AF
B2: GRUPO DE PRESIÓN AGUA FRÍA | D2: EQUIPOS DE CAUDAL VARIABLE | M2: Grupos EBARA AP-MVP | O2: http://www.ebara.es/productos/bombas-centrifugas-verticales/mvp/
M3: Grupos EBARA 1 bomba
B4: Número consumos tipo | C4: =SUM('Consumos TIPO'!K9:K13) -> 25
B5: Caudal simutaneo total | C5: ='Consumos TIPO'!D13 -> 3.14 l/s | D5: =C5*60 -> 188 l/min | E5: =D5*0.06 -> 11.30 m3/h
B7: Perdida de carga lineal | C7: ='Tramos AF'!D6 -> 6.32 mca | E7: =C7/$C$12 -> 16.65%
B8: Altura geométrica | C8: ='Tramos AF'!$D$2 -> 17.00 m | E8: =C8/$C$12 -> 44.77%
B9: Presion residual | C9: 1.00 bar | D9: =C9*100/9.806 -> 10.20 mca | E9: =D9/$C$12 -> 26.86%
B10: Altura de aspiración | C10: 1.00 m | E10: 2.63%
B11: Coeficiente seguridad | C11: 1.10
B12: Perdida TOTAL | C12: =(C7+C8+D9+C10)*C11 -> 37.97 mca | D12: =C12*9.806/100 -> 3.72 bar
B14: Deposito de regulación CTE-HS4 (opcional)
B16: Volumen 15min uso | C16: =15*C5*60 -> 2,824 litros
B17: Volumen 20min uso | C17: =20*C5*60 -> 3,765 litros
H18: Medición de tuberías
B19: Deposito de regulación CAM | C19: Orden 2.106 | H19: Dim (mm) | I19: Long (m)
B21: Volumen recomendable | C21: =('Consumos TIPO'!K14-1)*50+100 -> 1,300 litros | H21: 12 | I21: ='Tramos AF'!T4 -> 0.00
H22: 16 | I22: ='Tramos AF'!U4 -> 0.00 | M22: Grupos EBARA 2 bombas
B23: Grupo de presión caudal variable | H23: 20 | I23: ='Tramos AF'!V4 -> 0.00
B25: Número de bombas | C25: 2 | D25: Mínimo: | E25: =IF(C5<10,2,IF(C5<30,3,4)) -> 2 | H25: 25 | I25: ='Tramos AF'!X4 -> 0.00
B26: Bombas en reserva | C26: =IF(C5<=3,IF(C34<=4,0),1) -> 1 | D26: UNE 149202:2013 | H26: 32 | I26: ='Tramos AF'!Y4 -> 0.00
B28: Presión mínima (arranque) | C28: =(C7+C8+D9+C10)*C11 -> 37.97 mca | D28: =C28*9.806/100 -> 3.72 bar | H28: 40 | I28: ='Tramos AF'!Z4 -> 0.00
B29: Presión maxima (parada) | C29: =C28+(3*100/9.806) -> 68.57 mca | D29: =C29*9.806/100 -> 6.72 bar | H29: 50 | I29: ='Tramos AF'!AA4 -> 22.00
B30: Caudal xUd bomba | C30: =C5*0.6 -> 1.88 l/s | D30: =C30*3.6 -> 6.78 m3/h | E30: =C30*60 -> 113 l/min | H30: 63 | I30: ='Tramos AF'!AB4 -> 0.00
B32: Mínimo bomba individual | C32: 60% | D32: =D5*C32 -> 113 l/min | H32: 75 | I32: ='Tramos AF'!AC4 -> 0.00
B33: Coeficiente seguridad | C33: 1.1 | H33: 90 | I33: ='Tramos AF'!AE4 -> 0.00
B34: Potencia min xUd bomba | C34: =C33*(D30*(D9+C8)*1)/(367*C32) -> 0.92 kW | D34: =C34/0.736 -> 1.25 CV | H34: 110 | I34: ='Tramos AF'!AF4 -> 0.00
H35: 125 | I35: ='Tramos AF'!AG4 -> 0.00
B36: Acumulador de membrana | C36: s/ UNE 149202:2013 | H36: 140 | I36: ='Tramos AF'!AH4 -> 0.00
B38: Volumen deposito | C38: =MAX(200,(900*C5*(D28+3+1))/(4*35*(D29-D28)*(C25+C26))) -> 200 l | D38: o según fabricante | H38: 160 | I38: ='Tramos AF'!AI4 -> 0.00
B42: CRITERIO DE SELECCIÓN | C42: 1.- CAUDAL Y PERDIDA DE CARGA TOTAL DEL CONJUNTO DE BOMBAS | M42: Grupos EBARA 3 bombas
C43: 2.- 1 BOMBA DEL CONJUNTO 60% DEL CAUDAL Y PERDIDA DE CARGA TOTAL

Sheet Propiedades agua (hidden)
B1: TABLA. PROPIEDADES FÍSICAS DEL AGUA
A2: 1 | B2: 2 | C2: 3 | D2: 4 | E2: 5 | F2: 6 | G2: 7 | H2: 8 | L2: 1
A3: Temperatura | B3: Peso | C3: Densidad | D3: Viscosidad | E3: Viscosidad | F3: Tensión | G3: Carga a presión | H3: Módulo | I3: Temperatura | L3: Temperatura
B4: específico | D4: dinámica | E4: cinemática | F4: superficial | G4: de vapor | H4: Elasticidad Vol.
A5: T | B5: g | C5: r | D5: m | E5: n | F5: s | G5: pv * | H5: B | I5: T | J5: Visc cinem T / Visc cinemT = 200C | K5: g T / g T = 20 0C | L5: T
A6: ( 0C ) | B6: N/ m3 | C6: Kg/ m3 | D6: Pa*s x 10 -3 | E6: cm2/ s x 10 -2 | F6: N / m x 10 -2 | G6: m | H6: Pa | I6: ( 0C ) | J6: (adim.) | K6: (adim.) | L6: ( 0C )
A7: 0 | B7: 9806 | C7: 999.9 | D7: 1.792 | E7: 1.792 | F7: 7.62 | G7: 0.06 | H7: 204 | I7: 0 | J7: =E7/$E$11 -> 1.780 | K7: =B7/$B$11 -> 1.002 | L7: 0
A8: =A7+5 -> 5 | B8: 9807 | C8: 1000.0 | D8: 1.519 | E8: 1.519 | F8: 7.54 | G8: 0.09 | H8: 206 | I8: =I7+5 -> 5 | J8: 1.508 | K8: 1.002 | L8: =L7+5 -> 5
A9: 10 | B9: 9804 | C9: 999.7 | D9: 1.308 | E9: 1.308 | F9: 7.48 | G9: 0.12 | H9: 211 | I9: 10 | J9: 1.299 | K9: 1.002 | L9: 10
A10: 15 | B10: 9798 | C10: 999.1 | D10: 1.140 | E10: 1.141 | F10: 7.41 | G10: 0.17 | H10: 214 | I10: 15 | J10: 1.133 | K10: 1.001 | L10: 15
A11: 20 | B11: 9789 | C11: 998.2 | D11: 1.005 | E11: 1.007 | F11: 7.36 | G11: 0.25 | H11: 220 | I11: 20 | J11: 1.000 | K11: 1.000 | L11: 20
A12: 25 | B12: 9778 | C12: 997.1 | D12: 0.894 | E12: 0.897 | F12: 7.26 | G12: 0.33 | H12: 222 | I12: 25 | J12: 0.891 | K12: 0.999 | L12: 25
A13: 30 | B13: 9764 | C13: 995.7 | D13: 0.801 | E13: 0.804 | F13: 7.18 | G13: 0.44 | H13: 223 | I13: 30 | J13: 0.798 | K13: 0.997 | L13: 30
A14: 35 | B14: 9749 | C14: 994.1 | D14: 0.723 | E14: 0.727 | F14: 7.10 | G14: 0.58 | H14: 224 | I14: 35 | J14: 0.722 | K14: 0.996 | L14: 35
A15: 40 | B15: 9730 | C15: 992.2 | D15: 0.656 | E15: 0.661 | F15: 7.01 | G15: 0.76 | H15: 227 | I15: 40 | J15: 0.656 | K15: 0.994 | L15: 40
A16: 45 | B16: 9711 | C16: 990.2 | D16: 0.599 | E16: 0.605 | F16: 6.92 | G16: 0.98 | H16: 229 | I16: 45 | J16: 0.601 | K16: 0.992 | L16: 45
A17: 50 | B17: 9690 | C17: 988.1 | D17: 0.549 | E17: 0.556 | F17: 6.82 | G17: 1.26 | H17: 230 | I17: 50 | J17: 0.552 | K17: 0.990 | L17: 50
A18: 55 | B18: 9666 | C18: 985.7 | D18: 0.506 | E18: 0.513 | F18: 6.74 | G18: 1.61 | H18: 231 | I18: 55 | J18: 0.509 | K18: 0.987 | L18: 55
A19: 60 | B19: 9642 | C19: 983.2 | D19: 0.469 | E19: 0.477 | F19: 6.68 | G19: 2.03 | H19: 228 | I19: 60 | J19: 0.474 | K19: 0.985 | L19: 60
A20: 65 | B20: 9616 | C20: 980.6 | D20: 0.436 | E20: 0.444 | F20: 6.58 | G20: 2.56 | H20: 226 | I20: 65 | J20: 0.441 | K20: 0.982 | L20: 65
A21: 70 | B21: 9589 | C21: 977.8 | D21: 0.406 | E21: 0.415 | F21: 6.50 | G21: 3.20 | H21: 225 | I21: 70 | J21: 0.412 | K21: 0.980 | L21: 70
A22: 75 | B22: 9560 | C22: 974.9 | D22: 0.380 | E22: 0.390 | F22: 6.40 | G22: 3.96 | H22: 223 | I22: 75 | J22: 0.387 | K22: 0.977 | L22: 75
A23: 80 | B23: 9530 | C23: 971.8 | D23: 0.357 | E23: 0.367 | F23: 6.30 | G23: 4.86 | H23: 221 | I23: 80 | J23: 0.364 | K23: 0.974 | L23: 80
A24: 85 | B24: 9499 | C24: 968.6 | D24: 0.336 | E24: 0.347 | F24: 6.20 | G24: 5.93 | H24: 217 | I24: 85 | J24: 0.345 | K24: 0.970 | L24: 85
A25: 90 | B25: 9466 | C25: 965.3 | D25: 0.317 | E25: 0.328 | F25: 6.12 | G25: 7.18 | H25: 216 | I25: 90 | J25: 0.326 | K25: 0.967 | L25: 90
A26: 95 | B26: 9433 | C26: 961.9 | D26: 0.299 | E26: 0.311 | F26: 6.02 | G26: 8.62 | H26: 211 | I26: 95 | J26: 0.309 | K26: 0.964 | L26: 95
A27: 100 | B27: 9399 | C27: 958.4 | D27: 0.284 | E27: 0.296 | F27: 5.94 | G27: 10.33 | H27: 207 | I27: 100 | J27: 0.294 | K27: 0.960 | L27: 100
B28: * g = 9806 N/ m3

Sheet Tramos ACS
F2: INSTALACIÓN DE AGUA CALIENTE | T2: Medición de tuberias según diámetro
T3: 12 | U3: 16 | V3: 20 | X3: 25 | Y3: 32 | Z3: 40 | AA3: 50 | AB3: 63 | AC3: 75 | AE3: 90 | AF3: 110 | AG3: 125 | AH3: 140 | AI3: 160
B4: Perdida TERMICA tramo + desfavorable | D4: =SUM(AX:AX) -> 110 W | T4: =SUM(BO:BO) -> 0 | U4: =SUM(BP:BP) -> 0 | V4: =SUM(BQ:BQ) -> 0 | X4: =SUM(BR:BR) -> 0 | Y4: =SUM(BS:BS) -> 0 | Z4: =SUM(BT:BT) -> 0 | AA4: =SUM(BU:BU) -> 15 | AB4: =SUM(BV:BV) -> 0 | AC4: =SUM(BW:BW) -> 0 | AE4: =SUM(BX:BX) -> 0 | AF4: =SUM(BY:BY) -> 0 | AG4: =SUM(BZ:BZ) -> 0 | AH4: =SUM(CA:CA) -> 0 | AI4: =SUM(CB:CB) -> 0
AV5: regimen
B6: Perdida de carga tramo + desfavorable | D6: =SUM(AW:AW) -> 2.67 mca | AV6: turbulento
AS7: Habitual | AV7: agua fria
A8: 1
B9: Tramo | D9: Consumos tipo | E9: Unidades | F9: Consumo | G9: Consumo | H9: Otros Consumos | I9: Caudal | J9: Uso | K9: Qu | L9: fila | M9: suplemento | N9: fila | O9: fila | P9: fila | Q9: Coef. | R9: Coef. | S9: Coef. | T9: Q l/s | U9: Q l/s | V9: K | X9: Velocidad | Y9: Diámetro | Z9: Diámetro | AA9: Diámetro | AB9: Diámetro | AC9: Velocidad | AE9: Pérdida | AF9: Pérdida | AG9: +25% | AH9: Pérdida | AI9: Pérdida | AK9: Viscos. | AL9: Rugosidad | AM9: Número | AN9: Factor | AO9: Coef. | AP9: Coef. | AQ9: Perdida | AR9: Perdida | AS9: Perdida | AT9: Flamant | AU9: Perdida | AV9: Perdida | AW9: Suma a | AY9: 1 | AZ9: =AY9+1 -> 2 | BA9: =AZ9+1 -> 3 | BB9: 4 | BC9: 5 | BD9: 6 | BE9: 7 | BF9: 8 | BG9: 9 | BH9: 10 | BI9: 11 | BJ9: 12 | BK9: 13 | BL9: 14 | BO9: =AY14 -> 0 | BP9: =AZ14 -> 0 | BQ9: 0 | BR9: 0 | BS9: 0 | BT9: 0 | BU9: 15 | BV9: 0 | BW9: 0 | BX9: 0 | BY9: 0 | BZ9: 0 | CA9: 0 | CB9: 0
A10: 1 | B10: Descripcion | E10: de cada | F10: x unidad | G10: instalado | I10: Otros | K10: mayor | L10: tipo | M10: fila | N10: distinto | O10: escuelas | P10: busqueda | Q10: A | R10: B | S10: C | T10: TOTAL | U10: simult. | V10: Simult. | X10: Teórica | Y10: Teórico Int | Z10: Nom. Ext. | AA10: Nom. Ext. | AB10: Nom. Int. | AC10: Real | AE10: Tubería | AF10: Tubería | AG10: Accesorios | AH10: Total | AI10: TOTAL | AK10: agua | AL10: Absoluta | AM10: Reynols | AN10: K/d | AO10: rugosidad | AP10: rugosidad | AQ10: Carga | AR10: según | AS10: según | AT10: para ACS | AU10: según | AV10: según | AW10: tramo | AY10: 12 | AZ10: 16 | BA10: 20 | BB10: 25 | BC10: 32 | BD10: 40 | BE10: 50 | BF10: 63 | BG10: 75 | BH10: 90 | BI10: 110 | BJ10: 125 | BK10: 140 | BL10: 160
E11: tipologia | F11: (l/s) | G11: (l/s) | I11: (l/s) | L11: edificio | N11: escuelas | T11: (l/s) | U11: UNE 149 | V11: UNE 149 | X11: (m/s) | Y11: (mm) | Z11: CALCULO | AA11: SELEC. | AB11: (mm) | AC11: (m/s) | AE11: (mca/m) | AF11: (mca) | AG11: (mca) | AH11: (mca) | AI11: (KPa) | AK11: (cm2/seg) | AL11: (mm) | AO11: 1 / l^0,5 | AP11: Lamda | AQ11: (mca/m) | AR11: Hazen | AS11: Flamant | AT11: Cu, 70ºC | AU11: Blasius | AV11: Manning | AW11: + desfav. | AY11: =INDEX(Tablas!$C$98:$P$111,AY9,AY12) -> 8.80 | AZ11: =INDEX(Tablas!$C$98:$P$111,AZ9,AZ12) -> 11.70 | BA11: =INDEX(Tablas!$C$98:$P$111,BA9,BA12) -> 14.60 | BB11: =INDEX(Tablas!$C$98:$P$111,BB9,BB12) -> 18.20 | BC11: =INDEX(Tablas!$C$98:$P$111,BC9,BC12) -> 23.40 | BD11: =INDEX(Tablas!$C$98:$P$111,BD9,BD12) -> 29.20 | BE11: =INDEX(Tablas!$C$98:$P$111,BE9,BE12) -> 36.50 | BF11: =INDEX(Tablas!$C$98:$P$111,BF9,BF12) -> 46.00 | BG11: =INDEX(Tablas!$C$98:$P$111,BG9,BG12) -> 54.70 | BH11: =INDEX(Tablas!$C$98:$P$111,BH9,BH12) -> 65.70 | BI11: =INDEX(Tablas!$C$98:$P$111,BI9,BI12) -> 80.30 | BJ11: =INDEX(Tablas!$C$98:$P$111,BJ9,BJ12) -> 91.20 | BK11: =INDEX(Tablas!$C$98:$P$111,BK9,BK12) -> 102.20 | BL11: =INDEX(Tablas!$C$98:$P$111,BL9,BL12) -> 116.80
B12: Inicio-Montante | D12: ='Consumos TIPO'!$H$9 -> VIVIENDA TIPO A | E12: ='Consumos TIPO'!$K$9 -> 20 | F12: ='Consumos TIPO'!$F$36 -> 0.91 | G12: =E12*F12 -> 18.20 | J12: ='Consumos TIPO'!$D$7 -> Viviendas | K12: =Tablas!$C$47 -> 0.20 | L12: =VLOOKUP(J12,Tablas!$I$60:$K$65,3,FALSE) -> 1.00 | M12: =IF(G12>20,3,IF(K12<0.5,0,IF(G12<=1,1,2))) -> 0.00 | N12: =L12+M12 -> 1.00 | O12: =1+IF(G12<=1.5,0,IF(G12<=20,1,2)) -> 2.00 | P12: =IF(J12=Tablas!I65,O12,N12) -> 1.00 | Q12: =INDEX(Tablas!$E$59:$G$81,P12,1) -> 0.68 | R12: =INDEX(Tablas!$E$59:$G$81,P12,2) -> 0.45 | S12: =INDEX(Tablas!$E$59:$G$81,P12,3) -> -0.14 | U12: =IF(G12=0,0,POWER(G12,R12)*Q12+S12) -> 2.38 | V12: =IF(G12=0,0,U12/G12) -> 0.13 | X12: 3.00 | Y12: =(4000*U17/(3.1416*$X$12))^0.5 -> 33 | Z12: =INDEX(Tablas!$S$98:$S$111,MATCH(Y12,AY11:BL11,1)+1,1) -> 50 | AA12: =Z12 -> 50 | AB12: =INDEX(Tablas!$C$98:$P$111,MATCH(AA12,Tablas!$B$98:$B$111,0),MATCH(Y15,Tablas!$C$96:$P$96,0)) -> 37 | AC12: =4000*U17/(PI()*AB12*AB12) -> 2.48 | AE12: =IFERROR(AQ12,AS12) -> 0.14 | AF12: =AE12*(B16+C16) -> 2.13 | AG12: =AF12*0.25 -> 0.53 | AH12: =AF12+AG12 -> 2.67 | AI12: =AH12*9.8 -> 26.13 | AK12: =VLOOKUP('Consumos TIPO'!$D$9,'Propiedades agua'!$A$7:$K$27,5,FALSE)/100 -> 0.00556 | AL12: =VLOOKUP(Y14,Tablas!$B$115:$C$125,2,FALSE) -> 0.0015 | AM12: =9.99*AC12*AB12/AK12 -> 162429.1964 | AN12: =AL12/AB12 -> 4.109589041e-05 | AO12: =-2*LOG10((2.51*AO12/AM12)+AN12/3.71) -> 7.765 | AP12: =1/(AO12*AO12) -> 0.01658505411 | AQ12: =(AP12/AB12)*(AC12*AC12/(2*9.8))*1000 -> 0.1422096365 | AR12: =10.674*((U17/1000)^1.852/(140^1.852*(AB12/1000)^4.781)) -> 0.1371771804 | AS12: =(0.00056)*((AC12)^(7/4))/((AB12/1000)^(5/4)) -> 0.1716377774 | AT12: =378*((U17*3600)^1.75)/(AB12^4.75)/1000 -> 0.1270145061 | AU12: =(0.316/(AM12^0.25))*999*AC12^2/(2*(AB12/1000))/10000 -> 0.1321370954 | AV12: =10.3*(AO12^2*0.000001)*((U17/1000)^2/((AB12/1000)^5.33)) -> 0.1919604036 | AW12: =IF(C14="NO",0,AH12) -> 2.67 | AY12: =HLOOKUP(Y15,Tablas!$C$87:$I$94,8,FALSE) -> 6 | AZ12: =AY12 -> 6 | BA12: =AZ12 -> 6 | BB12: 6 | BC12: 6 | BD12: 6 | BE12: 6 | BF12: 6 | BG12: 6 | BH12: 6 | BI12: 6 | BJ12: 6 | BK12: 6 | BL12: 6
D13: ='Consumos TIPO'!$H$10 -> VIVIENDA TIPO B | E13: ='Consumos TIPO'!$K$10 -> 5 | F13: ='Consumos TIPO'!$L$36 -> 1.01 | G13: =E13*F13 -> 5.05 | J13: =J12 -> Viviendas | K13: =Tablas!$F$47 -> 0.20 | L13: =VLOOKUP(J13,Tablas!$I$60:$K$65,3,FALSE) -> 1.00 | M13: 0.00 | N13: 1.00 | O13: 2.00 | P13: =IF(J13=Tablas!I66,O13,N13) -> 1.00 | Q13: =INDEX(Tablas!$E$59:$G$81,P13,1) -> 0.68 | R13: =INDEX(Tablas!$E$59:$G$81,P13,2) -> 0.45 | S13: =INDEX(Tablas!$E$59:$G$81,P13,3) -> -0.14 | U13: =IF(G13=0,0,POWER(G13,R13)*Q13+S13) -> 1.27 | V13: =IF(G13=0,0,U13/G13) -> 0.25 | AY13: =IF(AY10=Z12,1,0) -> 0 | AZ13: =IF(AZ10=AA12,1,0) -> 0 | BA13: =IF(BA10=AA12,1,0) -> 0 | BB13: =IF(BB10=AA12,1,0) -> 0 | BC13: =IF(BC10=AA12,1,0) -> 0 | BD13: =IF(BD10=AA12,1,0) -> 0 | BE13: =IF(BE10=AA12,1,0) -> 1 | BF13: =IF(BF10=AA12,1,0) -> 0 | BG13: =IF(BG10=AA12,1,0) -> 0 | BH13: =IF(BH10=AA12,1,0) -> 0 | BI13: =IF(BI10=AA12,1,0) -> 0 | BJ13: =IF(BJ10=AA12,1,0) -> 0 | BK13: =IF(BK10=AA12,1,0) -> 0 | BL13: =IF(BL10=AA12,1,0) -> 0
B14: Tramo desfavorable: | C14: SI | D14: ='Consumos TIPO'!$H$11 -> VIVIENDA TIPO C | E14: ='Consumos TIPO'!$K$11 -> 0 | F14: ='Consumos TIPO'!$Q$36 -> 0.98 | G14: =E14*F14 -> 0.00 | J14: =J13 -> Viviendas | K14: =Tablas!$I$47 -> 0.20 | L14: =VLOOKUP(J14,Tablas!$I$60:$K$65,3,FALSE) -> 1.00 | M14: 0.00 | N14: 1.00 | O14: 1.00 | P14: =IF(J14=Tablas!I67,O14,N14) -> 1.00 | Q14: =INDEX(Tablas!$E$59:$G$81,P14,1) -> 0.68 | R14: =INDEX(Tablas!$E$59:$G$81,P14,2) -> 0.45 | S14: =INDEX(Tablas!$E$59:$G$81,P14,3) -> -0.14 | U14: =IF(G14=0,0,POWER(G14,R14)*Q14+S14) -> 0.00 | V14: =IF(G14=0,0,U14/G14) -> 0.00 | X14: Tipo: | Y14: PEX (Polietileno reticulado) | AE14: Ubicación | AF14: Aislam. | AG14: Perdidas | AH14: Long. | AI14: Perdidas | AY14: =AY13*(B16+C16) -> 0 | AZ14: =AZ13*(B16+C16) -> 0 | BA14: =BA13*(B16+C16) -> 0 | BB14: =BB13*(B16+C16) -> 0 | BC14: =BC13*(B16+C16) -> 0 | BD14: =BD13*(B16+C16) -> 0 | BE14: =BE13*(B16+C16) -> 15 | BF14: =BF13*(B16+C16) -> 0 | BG14: =BG13*(B16+C16) -> 0 | BH14: =BH13*(B16+C16) -> 0 | BI14: =BI13*(B16+C16) -> 0 | BJ14: =BJ13*(B16+C16) -> 0 | BK14: =BK13*(B16+C16) -> 0 | BL14: =BL13*(B16+C16) -> 0
B15: Long. Horizontal | C15: Long. Vertical | D15: ='Consumos TIPO'!$H$12 -> VIVIENDA TIPO D | E15: ='Consumos TIPO'!$K$12 -> 0 | F15: ='Consumos TIPO'!$V$36 -> 1.14 | G15: =E15*F15 -> 0.00 | J15: =J14 -> Viviendas | K15: =Tablas!$L$47 -> 0.20 | L15: =VLOOKUP(J15,Tablas!$I$60:$K$65,3,FALSE) -> 1.00 | M15: 0.00 | N15: 1.00 | O15: 1.00 | P15: =IF(J15=Tablas!I68,O15,N15) -> 1.00 | Q15: =INDEX(Tablas!$E$59:$G$81,P15,1) -> 0.68 | R15: =INDEX(Tablas!$E$59:$G$81,P15,2) -> 0.45 | S15: =INDEX(Tablas!$E$59:$G$81,P15,3) -> -0.14 | U15: =IF(G15=0,0,POWER(G15,R15)*Q15+S15) -> 0.00 | V15: =IF(G15=0,0,U15/G15) -> 0.00 | X15: Serie: | Y15: serie 3,2 | AE15: tubería | AF15: mínimo | AG15: térmicas | AH15: tuberia | AI15: térmicas
B16: 15.00 m | C16: 0.00 m | D16: ='Consumos TIPO'!$H$13 -> VIVIENDA TIPO E | E16: ='Consumos TIPO'!$K$13 -> 0 | F16: ='Consumos TIPO'!$AA$36 -> 0.68 | G16: =E16*F16 -> 0.00 | J16: =J15 -> Viviendas | K16: =Tablas!$O$47 -> 0.20 | L16: =VLOOKUP(J16,Tablas!$I$60:$K$65,3,FALSE) -> 1.00 | M16: 0.00 | N16: 1.00 | O16: 1.00 | P16: =IF(J16=Tablas!I69,O16,N16) -> 1.00 | Q16: =INDEX(Tablas!$E$59:$G$81,P16,1) -> 0.68 | R16: =INDEX(Tablas!$E$59:$G$81,P16,2) -> 0.45 | S16: =INDEX(Tablas!$E$59:$G$81,P16,3) -> -0.14 | U16: =IF(G16=0,0,POWER(G16,R16)*Q16+S16) -> 0.00 | V16: =IF(G16=0,0,U16/G16) -> 0.00 | X16: =IF(INDEX(Tablas!$C$88:$I$93,MATCH(Y14,Tablas!$L$88:$L$93,0),MATCH(Y15,serie,0))="SI","","La serie no existe en el materail seleccionado") ->  | AF16: (mm) | AG16: (W/m) | AH16: (m) | AI16: (W)
E17: =SUM(E12:E16) -> 25 | F17: TOTAL | G17: =SUM(G12:G16) -> 23.25 | I17: =SUM(I12:I16) -> 0.00 | J17: =J12 -> Viviendas | K17: =IF(E17=1,MAX(K12:K16),MAX(F12:F16,I12:I16)) -> 1.14 | L17: =VLOOKUP(J17,Tablas!$I$60:$K$65,3,FALSE) -> 1.00 | M17: 3.00 | N17: 4.00 | O17: 3.00 | P17: =IF(J17=Tablas!I69,O17,N17) -> 4.00 | Q17: =INDEX(Tablas!$E$59:$G$81,P17,1) -> 1.70 | R17: =INDEX(Tablas!$E$59:$G$81,P17,2) -> 0.21 | S17: =INDEX(Tablas!$E$59:$G$81,P17,3) -> -0.70 | T17: =G17+I17 -> 23.25 | U17: =IF(T17=0,0,POWER(T17,R17)*Q17+S17) -> 2.59 | V17: =IF(T17=0,0,U17/T17) -> 0.11 | AE17: Interior | AF17: =INDEX(Tablas!$C$204:$D$208,MATCH(AA12,Tablas!$B$204:$B$208,1),IF(AE17=Tablas!$C$203,1,2)) -> 35 | AG17: =IF('Consumos TIPO'!$D$9<=50,1,1.33)*INDEX(Tablas!$C$212:$G$225,MATCH(AA12,Tablas!$B$212:$B$225,0),MATCH(AF17,Tablas!$C$211:$G$211,0)) -> 7.3 | AH17: =SUM(B16:C16) -> 15.00 | AI17: =AG17*AH17 -> 110 | AX17: =IF(C14="SI",AI17,0) -> 110

Sheet Retorno ACS
C2: RETORNO ACS
C4: CRITERIO 1: Caudal mín. por columna 250 l/h | F4: CRITERIO 2: 10% del Qsimultaneo | L4: CRITERIO 3: Dif. Temp. Max. 3º | S4: Caudal TOTAL | V4: =MAX(D6,J7,P7)*3.6 -> 0.93 m3/h | X4: Bomba de recirculacion ACS | AB4: Wilo Stratos Z
C5: Número columnas | D5: 1 | F5: Caudal suministro simultáneo | J5: ='Consumos TIPO'!D14 -> 2.59 l/s | L5: Perdida térmica tramo más desfavorable | P5: ='Tramos ACS'!D4 -> 110 W | S5: Perdida de carga TOTAL | V5: =SUM(D22:P22)+SUM(D32:P32) -> 2.10 mca | X5: http://productfinder.wilo.com/be/en/c000000010002929a00040023/product.html#tab=1
C6: Caudal mínimo TOTAL de retorno | D6: =D5*D7 -> 0.07 l/s | F6: Caudal mínimo TOTAL de retorno | J6: =J5*0.1 -> 0.26 l/s | L6: Caudal mínimo TOTAL de retorno | P6: =P5/3.48/3600 -> 0.01 l/s
C7: Caudal mínimo por columna CTE HS4 | D7: =250/3600 -> 0.07 l/s | F7: Caudal mínimo por columna CTE HS4 | J7: =J6/D5 -> 0.26 l/s | L7: Caudal mínimo por columna CTE HS4 | P7: =P6/D5 -> 0.01 l/s
C9: PEX (Polietileno reticulado)
C10: serie 3,2
C12: COLUMNAS | D12: 1 | E12: =D12+1 -> 2 | F12: =E12+1 -> 3 | G12: 4 | H12: 5 | I12: 6 | J12: 7 | K12: 8 | L12: 9 | M12: 10 | N12: 11 | O12: 12 | P12: 13
C13: Nº columna de retorno | D13: =IF(D12<=$D$5,D12,"A") -> 1 | E13: =IF(E12<=$D$5,E12,"A") -> A | F13: =IF(F12<=$D$5,F12,"A") -> A | G13: =IF(G12<=$D$5,G12,"A") -> A | H13: =IF(H12<=$D$5,H12,"A") -> A | I13: =IF(I12<=$D$5,I12,"A") -> A | J13: =IF(J12<=$D$5,J12,"A") -> A | K13: =IF(K12<=$D$5,K12,"A") -> A | L13: =IF(L12<=$D$5,L12,"A") -> A | M13: =IF(M12<=$D$5,M12,"A") -> A | N13: =IF(N12<=$D$5,N12,"A") -> A | O13: =IF(O12<=$D$5,O12,"A") -> A | P13: =IF(P12<=$D$5,P12,"A") -> A
C14: Caudal por columna | D14: =IF(D13="A","A",$D$13*MAX($D$7,$J$7,$P$7)) -> 0.26 | E14: =IF(E13="A","A",$D$13*MAX($D$7,$J$7,$P$7)) -> A | F14: =IF(F13="A","A",$D$13*MAX($D$7,$J$7,$P$7)) -> A | G14: =IF(G13="A","A",$D$13*MAX($D$7,$J$7,$P$7)) -> A | H14: =IF(H13="A","A",$D$13*MAX($D$7,$J$7,$P$7)) -> A | I14: =IF(I13="A","A",$D$13*MAX($D$7,$J$7,$P$7)) -> A | J14: =IF(J13="A","A",$D$13*MAX($D$7,$J$7,$P$7)) -> A | K14: =IF(K13="A","A",$D$13*MAX($D$7,$J$7,$P$7)) -> A | L14: =IF(L13="A","A",$D$13*MAX($D$7,$J$7,$P$7)) -> A | M14: =IF(M13="A","A",$D$13*MAX($D$7,$J$7,$P$7)) -> A | N14: =IF(N13="A","A",$D$13*MAX($D$7,$J$7,$P$7)) -> A | O14: =IF(O13="A","A",$D$13*MAX($D$7,$J$7,$P$7)) -> A | P14: =IF(P13="A","A",$D$13*MAX($D$7,$J$7,$P$7)) -> A
C15: Diámetro nominal columna | D15: =IF(D13="A","A",INDEX(Tablas!$B$230:$B$235,MATCH(D14*3600,Tablas!$C$230:$C$235,1)+1,1)) -> 32 | E15: =IF(E13="A","A",INDEX(Tablas!$B$230:$B$235,MATCH(E14*3600,Tablas!$C$230:$C$235,1)+1,1)) -> A | F15: =IF(F13="A","A",INDEX(Tablas!$B$230:$B$235,MATCH(F14*3600,Tablas!$C$230:$C$235,1)+1,1)) -> A | G15: =IF(G13="A","A",INDEX(Tablas!$B$230:$B$235,MATCH(G14*3600,Tablas!$C$230:$C$235,1)+1,1)) -> A | H15: =IF(H13="A","A",INDEX(Tablas!$B$230:$B$235,MATCH(H14*3600,Tablas!$C$230:$C$235,1)+1,1)) -> A | I15: =IF(I13="A","A",INDEX(Tablas!$B$230:$B$235,MATCH(I14*3600,Tablas!$C$230:$C$235,1)+1,1)) -> A | J15: =IF(J13="A","A",INDEX(Tablas!$B$230:$B$235,MATCH(J14*3600,Tablas!$C$230:$C$235,1)+1,1)) -> A | K15: =IF(K13="A","A",INDEX(Tablas!$B$230:$B$235,MATCH(K14*3600,Tablas!$C$230:$C$235,1)+1,1)) -> A | L15: =IF(L13="A","A",INDEX(Tablas!$B$230:$B$235,MATCH(L14*3600,Tablas!$C$230:$C$235,1)+1,1)) -> A | M15: =IF(M13="A","A",INDEX(Tablas!$B$230:$B$235,MATCH(M14*3600,Tablas!$C$230:$C$235,1)+1,1)) -> A | N15: =IF(N13="A","A",INDEX(Tablas!$B$230:$B$235,MATCH(N14*3600,Tablas!$C$230:$C$235,1)+1,1)) -> A | O15: =IF(O13="A","A",INDEX(Tablas!$B$230:$B$235,MATCH(O14*3600,Tablas!$C$230:$C$235,1)+1,1)) -> A | P15: =IF(P13="A","A",INDEX(Tablas!$B$230:$B$235,MATCH(P14*3600,Tablas!$C$230:$C$235,1)+1,1)) -> A
C16: diámetro interior (mm) | D16: =IF(D13="A","A",INDEX(Tablas!$C$98:$P$111,MATCH(D15,Tablas!$B$98:$B$111,0),MATCH($C$10,Tablas!$C$96:$P$96,0))) -> 23.40 | E16: =IF(E13="A","A",INDEX(Tablas!$C$98:$P$111,MATCH(E15,Tablas!$B$98:$B$111,0),MATCH($C$10,Tablas!$C$96:$P$96,0))) -> A | F16: =IF(F13="A","A",INDEX(Tablas!$C$98:$P$111,MATCH(F15,Tablas!$B$98:$B$111,0),MATCH($C$10,Tablas!$C$96:$P$96,0))) -> A | G16: =IF(G13="A","A",INDEX(Tablas!$C$98:$P$111,MATCH(G15,Tablas!$B$98:$B$111,0),MATCH($C$10,Tablas!$C$96:$P$96,0))) -> A | H16: =IF(H13="A","A",INDEX(Tablas!$C$98:$P$111,MATCH(H15,Tablas!$B$98:$B$111,0),MATCH($C$10,Tablas!$C$96:$P$96,0))) -> A | I16: =IF(I13="A","A",INDEX(Tablas!$C$98:$P$111,MATCH(I15,Tablas!$B$98:$B$111,0),MATCH($C$10,Tablas!$C$96:$P$96,0))) -> A | J16: =IF(J13="A","A",INDEX(Tablas!$C$98:$P$111,MATCH(J15,Tablas!$B$98:$B$111,0),MATCH($C$10,Tablas!$C$96:$P$96,0))) -> A | K16: =IF(K13="A","A",INDEX(Tablas!$C$98:$P$111,MATCH(K15,Tablas!$B$98:$B$111,0),MATCH($C$10,Tablas!$C$96:$P$96,0))) -> A | L16: =IF(L13="A","A",INDEX(Tablas!$C$98:$P$111,MATCH(L15,Tablas!$B$98:$B$111,0),MATCH($C$10,Tablas!$C$96:$P$96,0))) -> A | M16: =IF(M13="A","A",INDEX(Tablas!$C$98:$P$111,MATCH(M15,Tablas!$B$98:$B$111,0),MATCH($C$10,Tablas!$C$96:$P$96,0))) -> A | N16: =IF(N13="A","A",INDEX(Tablas!$C$98:$P$111,MATCH(N15,Tablas!$B$98:$B$111,0),MATCH($C$10,Tablas!$C$96:$P$96,0))) -> A | O16: =IF(O13="A","A",INDEX(Tablas!$C$98:$P$111,MATCH(O15,Tablas!$B$98:$B$111,0),MATCH($C$10,Tablas!$C$96:$P$96,0))) -> A | P16: =IF(P13="A","A",INDEX(Tablas!$C$98:$P$111,MATCH(P15,Tablas!$B$98:$B$111,0),MATCH($C$10,Tablas!$C$96:$P$96,0))) -> A
C17: Velocidad (m/s) | D17: =IF(D13="A","A",4000*D14/(PI()*D16*D16)) -> 0.60 | E17: =IF(E13="A","A",4000*E14/(PI()*E16*E16)) -> A | F17: =IF(F13="A","A",4000*F14/(PI()*F16*F16)) -> A | G17: =IF(G13="A","A",4000*G14/(PI()*G16*G16)) -> A | H17: =IF(H13="A","A",4000*H14/(PI()*H16*H16)) -> A | I17: =IF(I13="A","A",4000*I14/(PI()*I16*I16)) -> A | J17: =IF(J13="A","A",4000*J14/(PI()*J16*J16)) -> A | K17: =IF(K13="A","A",4000*K14/(PI()*K16*K16)) -> A | L17: =IF(L13="A","A",4000*L14/(PI()*L16*L16)) -> A | M17: =IF(M13="A","A",4000*M14/(PI()*M16*M16)) -> A | N17: =IF(N13="A","A",4000*N14/(PI()*N16*N16)) -> A | O17: =IF(O13="A","A",4000*O14/(PI()*O16*O16)) -> A | P17: =IF(P13="A","A",4000*P14/(PI()*P16*P16)) -> A
C18: Perdida de carga (mca/m) | D18: =IF(D13="A","A",9810*0.0056*D17^1.75*(D16/1000)^-1.25/100000) -> 0.02 | E18: =IF(E13="A","A",9810*0.0056*E17^1.75*(E16/1000)^-1.25/100000) -> A | F18: =IF(F13="A","A",9810*0.0056*F17^1.75*(F16/1000)^-1.25/100000) -> A | G18: =IF(G13="A","A",9810*0.0056*G17^1.75*(G16/1000)^-1.25/100000) -> A | H18: =IF(H13="A","A",9810*0.0056*H17^1.75*(H16/1000)^-1.25/100000) -> A | I18: =IF(I13="A","A",9810*0.0056*I17^1.75*(I16/1000)^-1.25/100000) -> A | J18: =IF(J13="A","A",9810*0.0056*J17^1.75*(J16/1000)^-1.25/100000) -> A | K18: =IF(K13="A","A",9810*0.0056*K17^1.75*(K16/1000)^-1.25/100000) -> A | L18: =IF(L13="A","A",9810*0.0056*L17^1.75*(L16/1000)^-1.25/100000) -> A | M18: =IF(M13="A","A",9810*0.0056*M17^1.75*(M16/1000)^-1.25/100000) -> A | N18: =IF(N13="A","A",9810*0.0056*N17^1.75*(N16/1000)^-1.25/100000) -> A | O18: =IF(O13="A","A",9810*0.0056*O17^1.75*(O16/1000)^-1.25/100000) -> A | P18: =IF(P13="A","A",9810*0.0056*P17^1.75*(P16/1000)^-1.25/100000) -> A
C19: Longitud de tramo | D19: 18
C20: Tramo desfavorable | D20: SI | E20: NO | F20: NO | G20: NO | H20: NO | I20: NO | J20: NO | K20: NO | L20: NO | M20: NO | N20: NO | O20: NO | P20: NO
C21: Perdida de carga TOTAL (mca) | D21: =IF(D13="A","A",D19*D18*1.25) -> 0.56 | E21: =IF(E13="A","A",E19*E18*1.25) -> A | F21: =IF(F13="A","A",F19*F18*1.25) -> A | G21: A | H21: A | I21: A | J21: A | K21: A | L21: A | M21: A | N21: A | O21: A | P21: A
D22: =IF(D13="A",0,IF(D20="SI",D21,0)) -> 0.56 | E22: =IF(E13="A",0,IF(E20="SI",E21,0)) -> 0.00 | F22: 0.00 | G22: 0.00 | H22: 0.00 | I22: 0.00 | J22: 0.00 | K22: 0.00 | L22: 0.00 | M22: 0.00 | N22: 0.00 | O22: 0.00 | P22: 0.00
C23: TRAMO HORIZONTAL | D23: =IF(D13="A","",D13) -> 1 | E23: =IF(E13="A","",E13) -> 
C24: Caudal acumulado | D24: =IF(D13="A","A",D13*MAX($D$7,$J$7,$P$7)) -> 0.26 | E24: =IF(E13="A","A",E13*MAX($D$7,$J$7,$P$7)) -> A | F24: =IF(F13="A","A",F13*MAX($D$7,$J$7,$P$7)) -> A | G24: A | H24: A | I24: A | J24: A | K24: A | L24: A | M24: A | N24: A | O24: A | P24: A
C25: Diámetro de recirculación acumulado | D25: =IF(D13="A","A",INDEX(Tablas!$B$230:$B$235,MATCH(D24*3600,Tablas!$C$230:$C$235,1)+1,1)) -> 32 | E25: =IF(E13="A","A",INDEX(Tablas!$B$230:$B$235,MATCH(E24*3600,Tablas!$C$230:$C$235,1)+1,1)) -> A | F25: =IF(F13="A","A",INDEX(Tablas!$B$230:$B$235,MATCH(F24*3600,Tablas!$C$230:$C$235,1)+1,1)) -> A | G25: =IF(G13="A","A",INDEX(Tablas!$B$230:$B$235,MATCH(G24*3600,Tablas!$C$230:$C$235,1)+1,1)) -> A | H25: =IF(H13="A","A",INDEX(Tablas!$B$230:$B$235,MATCH(H24*3600,Tablas!$C$230:$C$235,1)+1,1)) -> A | I25: =IF(I13="A","A",INDEX(Tablas!$B$230:$B$235,MATCH(I24*3600,Tablas!$C$230:$C$235,1)+1,1)) -> A | J25: =IF(J13="A","A",INDEX(Tablas!$B$230:$B$235,MATCH(J24*3600,Tablas!$C$230:$C$235,1)+1,1)) -> A | K25: =IF(K13="A","A",INDEX(Tablas!$B$230:$B$235,MATCH(K24*3600,Tablas!$C$230:$C$235,1)+1,1)) -> A | L25: =IF(L13="A","A",INDEX(Tablas!$B$230:$B$235,MATCH(L24*3600,Tablas!$C$230:$C$235,1)+1,1)) -> A | M25: =IF(M13="A","A",INDEX(Tablas!$B$230:$B$235,MATCH(M24*3600,Tablas!$C$230:$C$235,1)+1,1)) -> A | N25: =IF(N13="A","A",INDEX(Tablas!$B$230:$B$235,MATCH(N24*3600,Tablas!$C$230:$C$235,1)+1,1)) -> A | O25: =IF(O13="A","A",INDEX(Tablas!$B$230:$B$235,MATCH(O24*3600,Tablas!$C$230:$C$235,1)+1,1)) -> A | P25: =IF(P13="A","A",INDEX(Tablas!$B$230:$B$235,MATCH(P24*3600,Tablas!$C$230:$C$235,1)+1,1)) -> A
C26: diámetro interior (mm) | D26: =IF(D13="A","A",INDEX(Tablas!$C$98:$P$111,MATCH(D25,Tablas!$B$98:$B$111,0),MATCH($C$10,Tablas!$C$96:$P$96,0))) -> 23.40 | E26: =IF(E13="A","A",INDEX(Tablas!$C$98:$P$111,MATCH(E25,Tablas!$B$98:$B$111,0),MATCH($C$10,Tablas!$C$96:$P$96,0))) -> A | F26: =IF(F13="A","A",INDEX(Tablas!$C$98:$P$111,MATCH(F25,Tablas!$B$98:$B$111,0),MATCH($C$10,Tablas!$C$96:$P$96,0))) -> A | G26: =IF(G13="A","A",INDEX(Tablas!$C$98:$P$111,MATCH(G25,Tablas!$B$98:$B$111,0),MATCH($C$10,Tablas!$C$96:$P$96,0))) -> A | H26: =IF(H13="A","A",INDEX(Tablas!$C$98:$P$111,MATCH(H25,Tablas!$B$98:$B$111,0),MATCH($C$10,Tablas!$C$96:$P$96,0))) -> A | I26: =IF(I13="A","A",INDEX(Tablas!$C$98:$P$111,MATCH(I25,Tablas!$B$98:$B$111,0),MATCH($C$10,Tablas!$C$96:$P$96,0))) -> A | J26: =IF(J13="A","A",INDEX(Tablas!$C$98:$P$111,MATCH(J25,Tablas!$B$98:$B$111,0),MATCH($C$10,Tablas!$C$96:$P$96,0))) -> A | K26: =IF(K13="A","A",INDEX(Tablas!$C$98:$P$111,MATCH(K25,Tablas!$B$98:$B$111,0),MATCH($C$10,Tablas!$C$96:$P$96,0))) -> A | L26: =IF(L13="A","A",INDEX(Tablas!$C$98:$P$111,MATCH(L25,Tablas!$B$98:$B$111,0),MATCH($C$10,Tablas!$C$96:$P$96,0))) -> A | M26: =IF(M13="A","A",INDEX(Tablas!$C$98:$P$111,MATCH(M25,Tablas!$B$98:$B$111,0),MATCH($C$10,Tablas!$C$96:$P$96,0))) -> A | N26: =IF(N13="A","A",INDEX(Tablas!$C$98:$P$111,MATCH(N25,Tablas!$B$98:$B$111,0),MATCH($C$10,Tablas!$C$96:$P$96,0))) -> A | O26: =IF(O13="A","A",INDEX(Tablas!$C$98:$P$111,MATCH(O25,Tablas!$B$98:$B$111,0),MATCH($C$10,Tablas!$C$96:$P$96,0))) -> A | P26: =IF(P13="A","A",INDEX(Tablas!$C$98:$P$111,MATCH(P25,Tablas!$B$98:$B$111,0),MATCH($C$10,Tablas!$C$96:$P$96,0))) -> A
C27: Velocidad (m/s) | D27: =IF(D13="A","A",4000*D24/(PI()*D26*D26)) -> 0.60 | E27: =IF(E13="A","A",4000*E24/(PI()*E26*E26)) -> A | F27: =IF(F13="A","A",4000*F24/(PI()*F26*F26)) -> A | G27: =IF(G13="A","A",4000*G24/(PI()*G26*G26)) -> A | H27: =IF(H13="A","A",4000*H24/(PI()*H26*H26)) -> A | I27: =IF(I13="A","A",4000*I24/(PI()*I26*I26)) -> A | J27: =IF(J13="A","A",4000*J24/(PI()*J26*J26)) -> A | K27: =IF(K13="A","A",4000*K24/(PI()*K26*K26)) -> A | L27: =IF(L13="A","A",4000*L24/(PI()*L26*L26)) -> A | M27: =IF(M13="A","A",4000*M24/(PI()*M26*M26)) -> A | N27: =IF(N13="A","A",4000*N24/(PI()*N26*N26)) -> A | O27: =IF(O13="A","A",4000*O24/(PI()*O26*O26)) -> A | P27: =IF(P13="A","A",4000*P24/(PI()*P26*P26)) -> A
C28: Perdida de carga (mca/m) | D28: =IF(D13="A","A",9810*0.0056*D27^1.75*(D26/1000)^-1.25/100000) -> 0.02 | E28: =IF(E13="A","A",9810*0.0056*E27^1.75*(E26/1000)^-1.25/100000) -> A | F28: =IF(F13="A","A",9810*0.0056*F27^1.75*(F26/1000)^-1.25/100000) -> A | G28: =IF(G13="A","A",9810*0.0056*G27^1.75*(G26/1000)^-1.25/100000) -> A | H28: =IF(H13="A","A",9810*0.0056*H27^1.75*(H26/1000)^-1.25/100000) -> A | I28: =IF(I13="A","A",9810*0.0056*I27^1.75*(I26/1000)^-1.25/100000) -> A | J28: =IF(J13="A","A",9810*0.0056*J27^1.75*(J26/1000)^-1.25/100000) -> A | K28: =IF(K13="A","A",9810*0.0056*K27^1.75*(K26/1000)^-1.25/100000) -> A | L28: =IF(L13="A","A",9810*0.0056*L27^1.75*(L26/1000)^-1.25/100000) -> A | M28: =IF(M13="A","A",9810*0.0056*M27^1.75*(M26/1000)^-1.25/100000) -> A | N28: =IF(N13="A","A",9810*0.0056*N27^1.75*(N26/1000)^-1.25/100000) -> A | O28: =IF(O13="A","A",9810*0.0056*O27^1.75*(O26/1000)^-1.25/100000) -> A | P28: =IF(P13="A","A",9810*0.0056*P27^1.75*(P26/1000)^-1.25/100000) -> A
C29: Longitud de tramo | D29: 50
C30: Tramo desfavorable | D30: SI | E30: SI | F30: SI | G30: SI | H30: SI | I30: SI | J30: SI | K30: SI | L30: SI | M30: SI | N30: SI | O30: SI | P30: SI
C31: Perdida de carga TOTAL (mca) | D31: =IF(D13="A","A",D29*D28*1.25) -> 1.55 | E31: =IF(E13="A","A",E29*E28*1.25) -> A | F31: =IF(F13="A","A",F29*F28*1.25) -> A | G31: A | H31: A | I31: A | J31: A | K31: A | L31: A | M31: A | N31: A | O31: A | P31: A
D32: =IF(D13="A",0,IF(D30="SI",D31,0)) -> 1.55 | E32: =IF(E13="A",0,IF(E30="SI",E31,0)) -> 0.00 | F32: 0.00 | G32: 0.00 | H32: 0.00 | I32: 0.00 | J32: 0.00 | K32: 0.00 | L32: 0.00 | M32: 0.00 | N32: 0.00 | O32: 0.00 | P32: 0.00

Sheet Tablas (hidden)
B3: HS4 tabla 2.1 Caudal Instantáneo mínimo por tipo de aparato | G3: Tabla activa de diametros
B5: Tipo de aparato | C5: Caudal AF (dm3/s) | D5: Caudal ACS (dm3/s) | G5: Termo plastico | H5: Cu | I5: Activa
B6: Lavamanos | C6: 0.05 | D6: 0.03 | F6: SI | G6: 12 | H6: 6 | I6: =IF('Consumos TIPO'!$C$46="Cobre",Tablas!H6,Tablas!G6) -> 12
B7: Lavabo | C7: 0.10 | D7: 0.07 | F7: NO | G7: 16 | H7: 8 | I7: =IF('Consumos TIPO'!$C$46="Cobre",Tablas!H7,Tablas!G7) -> 16
B8: Ducha | C8: 0.20 | D8: 0.10 | G8: 20 | H8: 10 | I8: =IF('Consumos TIPO'!$C$46="Cobre",Tablas!H8,Tablas!G8) -> 20
B9: Bañera 1,40 o más | C9: 0.30 | D9: 0.20 | G9: 25 | H9: 12 | I9: =IF('Consumos TIPO'!$C$46="Cobre",Tablas!H9,Tablas!G9) -> 25
B10: Bañera menos 1,40 | C10: 0.20 | D10: 0.15 | G10: 32 | H10: 15 | I10: =IF('Consumos TIPO'!$C$46="Cobre",Tablas!H10,Tablas!G10) -> 32
B11: Bidé | C11: 0.10 | D11: 0.07 | G11: 40 | H11: 18 | I11: =IF('Consumos TIPO'!$C$46="Cobre",Tablas!H11,Tablas!G11) -> 40
B12: Inodoro con cisterna | C12: 0.10 | G12: 50 | H12: 22 | I12: =IF('Consumos TIPO'!$C$46="Cobre",Tablas!H12,Tablas!G12) -> 50
B13: Inodoro con fluxor | C13: 1.25 | G13: 63 | H13: 28 | I13: =IF('Consumos TIPO'!$C$46="Cobre",Tablas!H13,Tablas!G13) -> 63
B14: Urinarios con grifo temporizado | C14: 0.15 | G14: 75 | H14: 35 | I14: =IF('Consumos TIPO'!$C$46="Cobre",Tablas!H14,Tablas!G14) -> 75
B15: Urinarios con cisterna (c/u) | C15: 0.04 | G15: 90 | H15: 42 | I15: =IF('Consumos TIPO'!$C$46="Cobre",Tablas!H15,Tablas!G15) -> 90
B16: Fregadero domestico | C16: 0.20 | D16: 0.10 | G16: 110 | H16: --- | I16: =IF('Consumos TIPO'!$C$46="Cobre",Tablas!H16,Tablas!G16) -> 110
B17: Fegadero no domestico | C17: 0.30 | D17: 0.20 | G17: 125 | H17: --- | I17: =IF('Consumos TIPO'!$C$46="Cobre",Tablas!H17,Tablas!G17) -> 125
B18: Lavavajillas domésticos | C18: 0.15 | D18: 0.10 | G18: 140 | H18: --- | I18: =IF('Consumos TIPO'!$C$46="Cobre",Tablas!H18,Tablas!G18) -> 140
B19: Lavavajillas industrial (20servicios) | C19: 0.25 | D19: 0.20 | G19: 160 | H19: --- | I19: =IF('Consumos TIPO'!$C$46="Cobre",Tablas!H19,Tablas!G19) -> 160
B20: Lavadero | C20: 0.20 | D20: 0.10
B21: Lavavadora doméstica | C21: 0.20 | D21: 0.15
B22: Lavadora industrial (8kg) | C22: 0.60 | D22: 0.40
B23: Grifo aislado (solo AF) | C23: 0.15
B24: Grifo aislado (con ACS) | C24: 0.15 | D24: 0.10
B25: Grifo garaje | C25: 0.20
B26: Vertedero | C26: 0.20
B28: Calculo Potencia ACS
C29: ACS | H29: VIVIENDA 1 | K29: VIVIENDA 2 | N29: VIVIENDA 3 | Q29: VIVIENDA 4 | T29: VIVIENDA 5
B30: Caudal demandado | C30: =C44 -> 0.51 | D30: l/s | G30: Simultaneidad | H30: ACS | I30: AF | K30: ACS | L30: AF | N30: ACS | O30: AF | Q30: ACS | R30: AF | T30: ACS | U30: AF
B31: Calos específico del agua | C31: 1.16 | D31: Wh/lºC | E31: 1 kcal/°C kg | G31: Confort Basico | H31: 0.5 | I31: 0.5 | K31: 0.5 | L31: 0.5 | N31: 0.5 | O31: 0.5 | Q31: 0.5 | R31: 0.5 | T31: 0.5 | U31: 0.5
G32: Confort Medio | H32: 0.7 | I32: 0.7 | K32: 0.7 | L32: 0.7 | N32: 0.7 | O32: 0.7 | Q32: 0.7 | R32: 0.7 | T32: 0.7 | U32: 0.7
B33: Form. Tradicional | G33: Confort Alto | H33: 0.9 | I33: 0.9 | K33: 0.9 | L33: 0.9 | N33: 0.9 | O33: 0.9 | Q33: 0.9 | R33: 0.9 | T33: 0.9 | U33: 0.9
B34: UNE 149.201/07 | G34: Form. Tradicional | H34: =MAX(1/(SUM('Consumos TIPO'!C21:C31)-1)^0.5,0.2) -> 0.32 | I34: =MAX(1/(SUM('Consumos TIPO'!C21:C31)-1)^0.5,0.2) -> 0.32 | K34: =MAX(1/(SUM('Consumos TIPO'!I21:I31)-1)^0.5,0.2) -> 0.30 | L34: =MAX(1/(SUM('Consumos TIPO'!I21:I31)-1)^0.5,0.2) -> 0.30 | N34: =MAX(1/(SUM('Consumos TIPO'!N21:N31)-1)^0.5,0.2) -> 0.29 | O34: =MAX(1/(SUM('Consumos TIPO'!N21:N31)-1)^0.5,0.2) -> 0.29 | Q34: =MAX(1/(SUM('Consumos TIPO'!S21:S31)-1)^0.5,0.2) -> 0.27 | R34: =MAX(1/(SUM('Consumos TIPO'!S21:S31)-1)^0.5,0.2) -> 0.27 | T34: =MAX(1/(SUM('Consumos TIPO'!X21:X31)-1)^0.5,0.2) -> 0.41 | U34: =MAX(1/(SUM('Consumos TIPO'!X21:X31)-1)^0.5,0.2) -> 0.41
G35: UNE 149.201/07 | H35: =C44/C48 -> 0.56 | I35: =D44/D48 -> 0.43 | K35: =F44/F48 -> 0.54 | L35: =G44/G48 -> 0.41 | N35: =I44/I48 -> 0.55 | O35: =J44/J48 -> 0.41 | Q35: =L44/L48 -> 0.51 | R35: =M44/M48 -> 0.38 | T35: =O44/O48 -> 0.64 | U35: =P44/P48 -> 0.51
F37: Selección | G37: ='Consumos TIPO'!D10 -> UNE 149.201/07 | H37: =VLOOKUP($G$37,$G$31:$U$35,2,FALSE) -> 0.56 | I37: =VLOOKUP($G$37,$G$31:$U$35,3,FALSE) -> 0.43 | K37: =VLOOKUP($G$37,$G$31:$U$35,5,FALSE) -> 0.54 | L37: =VLOOKUP($G$37,$G$31:$U$35,6,FALSE) -> 0.41 | N37: =VLOOKUP($G$37,$G$31:$U$35,8,FALSE) -> 0.55 | O37: =VLOOKUP($G$37,$G$31:$U$35,9,FALSE) -> 0.41 | Q37: =VLOOKUP($G$37,$G$31:$U$35,11,FALSE) -> 0.51 | R37: =VLOOKUP($G$37,$G$31:$U$35,12,FALSE) -> 0.38 | T37: =VLOOKUP($G$37,$G$31:$U$35,14,FALSE) -> 0.64 | U37: =VLOOKUP($G$37,$G$31:$U$35,15,FALSE) -> 0.51
B38: Potencia(W)=Caudal demandado de ACS(m3/h)*Diferencia de temperatura de ACS-temperatura AF de red(K)*calor específico del agua (1,16 W*h/kg*K)*peso específico del agua (1000 kg/m3)
B40: Tablas Coeficientes UNE 149.201/07
C42: VIVIENDA 1 | F42: VIVIENDA 2 | I42: VIVIENDA 3 | L42: VIVIENDA 4 | O42: VIVIENDA 5
C43: ACS | D43: AF | F43: ACS | G43: AF | I43: ACS | J43: AF | L43: ACS | M43: AF | O43: ACS | P43: AF
B44: Qc=A * (Qt)^B + C | C44: =POWER(C48,C55)*C54+C56 -> 0.51 | D44: =POWER(D48,D55)*D54+D56 -> 0.71 | F44: =POWER(F48,F55)*F54+F56 -> 0.55 | G44: =POWER(G48,G55)*G54+G56 -> 0.76 | I44: =POWER(I48,I55)*I54+I56 -> 0.53 | J44: =POWER(J48,J55)*J54+J56 -> 0.76 | L44: =POWER(L48,L55)*L54+L56 -> 0.58 | M44: =POWER(M48,M55)*M54+M56 -> 0.82 | O44: =POWER(O48,O55)*O54+O56 -> 0.43 | P44: =POWER(P48,P55)*P54+P56 -> 0.59
B46: Uso edificio | C46: ='Consumos TIPO'!D7 -> Viviendas | D46: =$C$46 -> Viviendas | F46: =$C$46 -> Viviendas | G46: =$C$46 -> Viviendas | I46: =$C$46 -> Viviendas | J46: =$C$46 -> Viviendas | L46: =$C$46 -> Viviendas | M46: =$C$46 -> Viviendas | O46: =$C$46 -> Viviendas | P46: =$C$46 -> Viviendas
B47: Qu (Caudal unitario mayor en l/s) | C47: =MAX('Consumos TIPO'!F21:F31) -> 0.20 | D47: =MAX('Consumos TIPO'!E21:E31) -> 0.30 | F47: =MAX('Consumos TIPO'!L21:L32) -> 0.20 | G47: =MAX('Consumos TIPO'!K21:K31) -> 0.40 | I47: =MAX('Consumos TIPO'!Q21:Q31) -> 0.20 | J47: =MAX('Consumos TIPO'!P21:P31) -> 0.30 | L47: =MAX('Consumos TIPO'!V21:V31) -> 0.20 | M47: =MAX('Consumos TIPO'!U21:U31) -> 0.40 | O47: =MAX('Consumos TIPO'!AA21:AA31) -> 0.20 | P47: =MAX('Consumos TIPO'!Z21:Z31) -> 0.30
B48: Qt (caudal total demandado en l/s) | C48: ='Consumos TIPO'!F36+'Consumos TIPO'!F37 -> 0.91 | D48: ='Consumos TIPO'!E36+'Consumos TIPO'!E37 -> 1.65 | F48: ='Consumos TIPO'!L33 -> 1.01 | G48: ='Consumos TIPO'!K33 -> 1.85 | I48: ='Consumos TIPO'!Q33 -> 0.98 | J48: ='Consumos TIPO'!P33 -> 1.85 | L48: ='Consumos TIPO'!V33 -> 1.14 | M48: ='Consumos TIPO'!U33 -> 2.15 | O48: ='Consumos TIPO'!AA33 -> 0.68 | P48: ='Consumos TIPO'!Z33 -> 1.15
B49: fila por tipo edificio | C49: =VLOOKUP($C$46,$I$60:$K$65,3,FALSE) -> 1.0 | D49: =VLOOKUP($D$46,$I$60:$K$65,3,FALSE) -> 1.0 | F49: =VLOOKUP($C$46,$I$60:$K$65,3,FALSE) -> 1.0 | G49: =VLOOKUP($D$46,$I$60:$K$65,3,FALSE) -> 1.0 | I49: =VLOOKUP($C$46,$I$60:$K$65,3,FALSE) -> 1.0 | J49: =VLOOKUP($D$46,$I$60:$K$65,3,FALSE) -> 1.0 | L49: =VLOOKUP($C$46,$I$60:$K$65,3,FALSE) -> 1.0 | M49: =VLOOKUP($D$46,$I$60:$K$65,3,FALSE) -> 1.0 | O49: =VLOOKUP($C$46,$I$60:$K$65,3,FALSE) -> 1.0 | P49: =VLOOKUP($D$46,$I$60:$K$65,3,FALSE) -> 1.0
B50: Suplemento fila (segun Qu y Qt) | C50: =IF(C48>20,3,IF(C47<0.5,0,IF(C48<=1,1,2))) -> 0.0 | D50: =IF(D48>20,3,IF(D47<0.5,0,IF(D48<=1,1,2))) -> 0.0 | F50: =IF(F48>20,3,IF(F47<0.5,0,IF(F48<=1,1,2))) -> 0.0 | G50: =IF(G48>20,3,IF(G47<0.5,0,IF(G48<=1,1,2))) -> 0.0 | I50: =IF(I48>20,3,IF(I47<0.5,0,IF(I48<=1,1,2))) -> 0.0 | J50: =IF(J48>20,3,IF(J47<0.5,0,IF(J48<=1,1,2))) -> 0.0 | L50: =IF(L48>20,3,IF(L47<0.5,0,IF(L48<=1,1,2))) -> 0.0 | M50: =IF(M48>20,3,IF(M47<0.5,0,IF(M48<=1,1,2))) -> 0.0 | O50: =IF(O48>20,3,IF(O47<0.5,0,IF(O48<=1,1,2))) -> 0.0 | P50: =IF(P48>20,3,IF(P47<0.5,0,IF(P48<=1,1,2))) -> 0.0
B51: Fila edificio distinto escuelas | C51: =C49+C50 -> 1.0 | D51: =D49+D50 -> 1.0 | F51: =F49+F50 -> 1.0 | G51: =G49+G50 -> 1.0 | I51: =I49+I50 -> 1.0 | J51: =J49+J50 -> 1.0 | L51: =L49+L50 -> 1.0 | M51: =M49+M50 -> 1.0 | O51: =O49+O50 -> 1.0 | P51: =P49+P50 -> 1.0
B52: Fila para escuelas | C52: =1+IF(C48<=1.5,0,IF(C48<=20,1,2)) -> 1.0 | D52: =1+IF(D48<=1.5,0,IF(D48<=20,1,2)) -> 2.0 | F52: =1+IF(F48<=1.5,0,IF(F48<=20,1,2)) -> 1.0 | G52: =1+IF(G48<=1.5,0,IF(G48<=20,1,2)) -> 2.0 | I52: =1+IF(I48<=1.5,0,IF(I48<=20,1,2)) -> 1.0 | J52: =1+IF(J48<=1.5,0,IF(J48<=20,1,2)) -> 2.0 | L52: =1+IF(L48<=1.5,0,IF(L48<=20,1,2)) -> 1.0 | M52: =1+IF(M48<=1.5,0,IF(M48<=20,1,2)) -> 2.0 | O52: =1+IF(O48<=1.5,0,IF(O48<=20,1,2)) -> 1.0 | P52: =1+IF(P48<=1.5,0,IF(P48<=20,1,2)) -> 1.0
B53: Fila busqueda | C53: =IF(C46=$I$65,C52,C51) -> 1.0 | D53: =IF(D46=$I$65,D52,D51) -> 1.0 | F53: =IF(F46=$I$65,F52,F51) -> 1.0 | G53: =IF(G46=$I$65,G52,G51) -> 1.0 | I53: =IF(I46=$I$65,I52,I51) -> 1.0 | J53: =IF(J46=$I$65,J52,J51) -> 1.0 | L53: =IF(L46=$I$65,L52,L51) -> 1.0 | M53: =IF(M46=$I$65,M52,M51) -> 1.0 | O53: =IF(O46=$I$65,O52,O51) -> 1.0 | P53: =IF(P46=$I$65,P52,P51) -> 1.0
B54: Coeficiente A | C54: =INDEX($E$59:$G$81,$C$53,1) -> 0.68 | D54: =INDEX($E$59:$G$81,$D$53,1) -> 0.68 | F54: =INDEX($E$59:$G$81,$C$53,1) -> 0.68 | G54: =INDEX($E$59:$G$81,$D$53,1) -> 0.68 | I54: =INDEX($E$59:$G$81,$C$53,1) -> 0.68 | J54: =INDEX($E$59:$G$81,$D$53,1) -> 0.68 | L54: =INDEX($E$59:$G$81,$C$53,1) -> 0.68 | M54: =INDEX($E$59:$G$81,$D$53,1) -> 0.68 | O54: =INDEX($E$59:$G$81,$C$53,1) -> 0.68 | P54: =INDEX($E$59:$G$81,$D$53,1) -> 0.68
B55: Coeficiente B | C55: =INDEX($E$59:$G$81,$C$53,2) -> 0.45 | D55: =INDEX($E$59:$G$81,$D$53,2) -> 0.45 | F55: =INDEX($E$59:$G$81,$C$53,2) -> 0.45 | G55: =INDEX($E$59:$G$81,$D$53,2) -> 0.45 | I55: =INDEX($E$59:$G$81,$C$53,2) -> 0.45 | J55: =INDEX($E$59:$G$81,$D$53,2) -> 0.45 | L55: =INDEX($E$59:$G$81,$C$53,2) -> 0.45 | M55: =INDEX($E$59:$G$81,$D$53,2) -> 0.45 | O55: =INDEX($E$59:$G$81,$C$53,2) -> 0.45 | P55: =INDEX($E$59:$G$81,$D$53,2) -> 0.45
B56: Coeficiente C | C56: =INDEX($E$59:$G$81,$C$53,3) -> -0.14 | D56: =INDEX($E$59:$G$81,$D$53,3) -> -0.14 | F56: =INDEX($E$59:$G$81,$C$53,3) -> -0.14 | G56: =INDEX($E$59:$G$81,$D$53,3) -> -0.14 | I56: =INDEX($E$59:$G$81,$C$53,3) -> -0.14 | J56: =INDEX($E$59:$G$81,$D$53,3) -> -0.14 | L56: =INDEX($E$59:$G$81,$C$53,3) -> -0.14 | M56: =INDEX($E$59:$G$81,$D$53,3) -> -0.14 | O56: =INDEX($E$59:$G$81,$C$53,3) -> -0.14 | P56: =INDEX($E$59:$G$81,$D$53,3) -> -0.14
C58: Qu | D58: Qt | E58: A | F58: B | G58: C | I58: Tipos edificios | K58: fila asociada
A59: 1 | B59: =I60 -> Viviendas | C59: <0,5 | D59: ≤20 | E59: 0.682 | F59: 0.450 | G59: -0.140
A60: =A59+1 -> 2 | C60: ≥0,5 | D60: ≤1 | E60: 1.000 | F60: 1.000 | G60: 0.000 | I60: Viviendas | K60: 1
A61: =A60+1 -> 3 | C61: ≥0,5 | D61: ≤20 | E61: 1.700 | F61: 0.200 | G61: -0.700 | I61: Oficinas, estaciones, aeropuertos, etc | K61: 5
A62: 4 | C62: Sin limite | D62: >20 | E62: 1.700 | F62: 0.210 | G62: -0.700 | I62: Hoteles, discotecas, museos | K62: 9
A63: 5 | B63: =I61 -> Oficinas, estaciones, aeropuertos, etc | C63: <0,5 | D63: ≤20 | E63: 0.682 | F63: 0.450 | G63: -0.140 | I63: Centros Comerciales | K63: 4
A64: 6 | C64: ≥0,5 | D64: ≤1 | E64: 1.000 | F64: 1.000 | G64: 0.000 | I64: Hospitales | K64: 5
A65: 7 | C65: ≥0,5 | D65: ≤20 | E65: 1.700 | F65: 0.210 | G65: -0.700 | I65: Escuelas, Polideportivos | K65: 6
A66: 8 | C66: Sin limite | D66: >20 | E66: 0.400 | F66: 0.540 | G66: 0.480
A67: 9 | B67: =I62 -> Hoteles, discotecas, museos | C67: <0,5 | D67: ≤20 | E67: 0.690 | F67: 0.500 | G67: -0.120
A68: 10 | C68: ≥0,5 | D68: ≤1 | E68: 1.000 | F68: 1.000 | G68: 0.000
A69: 11 | C69: ≥0,5 | D69: ≤20 | E69: 1.000 | F69: 0.366 | G69: 0.000
A70: 12 | C70: Sin limite | D70: >20 | E70: 1.080 | F70: 0.500 | G70: -1.830
A71: 13 | B71: =I63 -> Centros Comerciales | C71: <0,5 | D71: ≤20 | E71: 0.698 | F71: 0.500 | G71: -0.120
A72: 14 | C72: ≥0,5 | D72: ≤1 | E72: 1.000 | F72: 1.000 | G72: 0.000
A73: 15 | C73: ≥0,5 | D73: ≤20 | E73: 1.000 | F73: 0.366 | G73: 0.000
A74: 16 | C74: Sin limite | D74: >20 | E74: 4.300 | F74: 0.270 | G74: -6.650
A75: 17 | B75: =I64 -> Hospitales | C75: <0,5 | D75: ≤20 | E75: 0.698 | F75: 0.500 | G75: -0.120
A76: 18 | C76: ≥0,5 | D76: ≤1 | E76: 1.000 | F76: 1.000 | G76: 0.000
A77: 19 | C77: ≥0,5 | D77: ≤20 | E77: 1.000 | F77: 0.366 | G77: 0.000
A78: 20 | C78: Sin limite | D78: >20 | E78: 0.250 | F78: 0.650 | G78: 1.250
A79: 21 | B79: =I65 -> Escuelas, Polideportivos | C79: Sin limite | D79: ≤1,5 | E79: 1.000 | F79: 1.000 | G79: 0.000
A80: 22 | C80: Sin limite | D80: ≤20 | E80: 4.400 | F80: 0.270 | G80: -3.400
A81: 23 | C81: Sin limite | D81: >20 | E81: -22.500 | F81: -0.500 | G81: 11.500
B84: Tabla tuberias termoplasticas
K85: PB
B86: Series que existen en cada material | D86: PN20 | E86: PN16 | F86: PN12,5 | G86: PN10
B87: Cobre | C87: serie 2 | D87: serie 2,5 | E87: serie 3,2 | F87: serie 4 | G87: serie 5 | H87: serie 6,3 | I87: serie 8 | K87: ='Consumos TIPO'!D12 -> serie 5 | O87: Serie activa | R87: PP (Polipropileno) | S87: PEX (Polietileno reticulado) | T87: HDPE (Polietileno de Alta Densidad) | U87: LDPE (Polietileno de baja densidad) | V87: PB (polibutileno)
B88: PP (Polipropileno) | C88: SI | D88: SI | E88: SI | F88: --- | G88: SI | H88: --- | I88: --- | K88: =INDEX($C$88:$I$93,1,MATCH($K$87,$C$87:$I$87,0)) -> SI | L88: PP (Polipropileno) | R88: serie 2 | S88: serie 3,2 | T88: serie 3,2 | U88: serie 3,2 | V88: serie 3,2
B89: PEX (Polietileno reticulado) | C89: --- | D89: --- | E89: SI | F89: SI | G89: SI | H89: SI | I89: --- | K89: =INDEX($C$88:$I$93,2,MATCH($K$87,$C$87:$I$87,0)) -> SI | L89: PEX (Polietileno reticulado) | R89: serie 2,5 | S89: serie 4 | T89: serie 4 | U89: serie 4 | V89: serie 4
B90: HDPE (Polietileno de Alta Densidad) | C90: --- | D90: --- | E90: SI | F90: SI | G90: SI | H90: SI | I90: --- | K90: =INDEX($C$88:$I$93,3,MATCH($K$87,$C$87:$I$87,0)) -> SI | L90: HDPE (Polietileno de Alta Densidad) | R90: serie 3,2 | S90: serie 5 | T90: serie 5 | U90: serie 5 | V90: serie 5
B91: LDPE (Polietileno de baja densidad) | C91: --- | D91: --- | E91: SI | F91: SI | G91: SI | H91: SI | I91: --- | K91: =INDEX($C$88:$I$93,4,MATCH($K$87,$C$87:$I$87,0)) -> SI | L91: LDPE (Polietileno de baja densidad) | R91: serie 5 | S91: serie 6,3 | T91: serie 6,3 | U91: serie 6,3 | V91: serie 6,3
B92: PB (polibutileno) | C92: --- | D92: --- | E92: SI | F92: SI | G92: SI | H92: SI | I92: SI | K92: =INDEX($C$88:$I$93,5,MATCH($K$87,$C$87:$I$87,0)) -> SI | L92: PB (polibutileno) | V92: serie 8
B93: PVC-C | C93: --- | D93: --- | E93: --- | F93: SI | G93: SI | H93: SI | I93: --- | K93: =INDEX($C$88:$I$93,6,MATCH($K$87,$C$87:$I$87,0)) -> SI | L93: PVC-C
B94: Columna | C94: 2 | D94: =C94+2 -> 4 | E94: 6 | F94: 8 | G94: 10 | H94: 12 | I94: 14
R95: selección
C96: --- | D96: serie 2 | E96: --- | F96: serie 2,5 | G96: --- | H96: serie 3,2 | I96: --- | J96: serie 4 | K96: --- | L96: serie 5 | M96: --- | N96: serie 6,3 | O96: --- | P96: serie 8 | R96: ='Consumos TIPO'!D12 -> serie 5
B97: Diámetro comercial | C97: Espesor | D97: Dim int | E97: Espesor | F97: Dim int | G97: Espesor | H97: Dim int | I97: Espesor | J97: Dim int | K97: Espesor | L97: Dim int | M97: Espesor | N97: Dim int | O97: Espesor | P97: Dim int | R97: Dim int | S97: Dim comer
A98: 1 | B98: 12 | C98: 2.4 | D98: 7.2 | E98: 2 | F98: 8 | G98: 1.6 | H98: 8.8 | I98: 1.3 | J98: 9.3 | K98: 1.1 | L98: 9.8 | M98: 0.9 | N98: 10.2 | O98: 0.7 | P98: 10.6 | R98: =HLOOKUP($R$96,$C$96:$P$111,T98,FALSE) -> 9.8 | S98: 12 | T98: 3
A99: =A98+1 -> 2 | B99: 16 | C99: 3.2 | D99: 9.6 | E99: 2.7 | F99: 10.7 | G99: 2.2 | H99: 11.7 | I99: 1.8 | J99: 12.4 | K99: 1.5 | L99: 13.1 | M99: 1.2 | N99: 13.6 | O99: 0.9 | P99: 14.1 | R99: 13.1 | S99: 16 | T99: =T98+1 -> 4
A100: =A99+1 -> 3 | B100: 20 | C100: 4 | D100: 12 | E100: 3.3 | F100: 13.3 | G100: 2.7 | H100: 14.6 | I100: 2.2 | J100: 15.6 | K100: 1.8 | L100: 16.4 | M100: 1.5 | N100: 17.1 | O100: 1.2 | P100: 17.6 | R100: 16.4 | S100: 20 | T100: =T99+1 -> 5
A101: 4 | B101: 25 | C101: 5 | D101: 15 | E101: 4.2 | F101: 16.7 | G101: 3.4 | H101: 18.2 | I101: 2.8 | J101: 19.4 | K101: 2.3 | L101: 20.5 | M101: 1.8 | N101: 21.3 | O101: 1.5 | P101: 22.1 | R101: 20.5 | S101: 25 | T101: 6
A102: 5 | B102: 32 | C102: 6.4 | D102: 19.2 | E102: 5.3 | F102: 21.3 | G102: 4.3 | H102: 23.4 | I102: 3.6 | J102: 24.9 | K102: 2.9 | L102: 26.2 | M102: 2.4 | N102: 27.3 | O102: 1.9 | P102: 28.2 | R102: 26.2 | S102: 32 | T102: 7
A103: 6 | B103: 40 | C103: 8 | D103: 24 | E103: 6.7 | F103: 26.7 | G103: 5.4 | H103: 29.2 | I103: 4.4 | J103: 31.1 | K103: 3.6 | L103: 32.7 | M103: 2.9 | N103: 34.1 | O103: 2.4 | P103: 35.3 | R103: 32.7 | S103: 40 | T103: 8
A104: 7 | B104: 50 | C104: 10 | D104: 30 | E104: 8.3 | F104: 33.3 | G104: 6.8 | H104: 36.5 | I104: 5.6 | J104: 38.9 | K104: 4.5 | L104: 40.9 | M104: 3.7 | N104: 42.6 | O104: 2.9 | P104: 44.1 | R104: 40.9 | S104: 50 | T104: 9
A105: 8 | B105: 63 | C105: 12.6 | D105: 37.8 | E105: 10.5 | F105: 42 | G105: 8.5 | H105: 46 | I105: 7 | J105: 49 | K105: 5.7 | L105: 51.5 | M105: 4.6 | N105: 53.7 | O105: 3.7 | P105: 55.6 | R105: 51.5 | S105: 63 | T105: 10
A106: 9 | B106: 75 | C106: 15 | D106: 45 | E106: 12.5 | F106: 50 | G106: 10.1 | H106: 54.7 | I106: 8.3 | J106: 58.3 | K106: 6.8 | L106: 61.4 | M106: 5.5 | N106: 64 | O106: 4.4 | P106: 66.2 | R106: 61.4 | S106: 75 | T106: 11
A107: 10 | B107: 90 | C107: 18 | D107: 54 | E107: 15 | F107: 60 | G107: 12.2 | H107: 65.7 | I107: 10 | J107: 70 | K107: 8.2 | L107: 73.6 | M107: 6.6 | N107: 76.8 | O107: 5.3 | P107: 79.4 | R107: 73.6 | S107: 90 | T107: 12
A108: 11 | B108: 110 | C108: 22 | D108: 66 | E108: 18.3 | F108: 73.3 | G108: 14.9 | H108: 80.3 | I108: 12.2 | J108: 85.6 | K108: 10 | L108: 90 | M108: 8.1 | N108: 93.8 | O108: 6.5 | P108: 97.1 | R108: 90 | S108: 110 | T108: 13
A109: 12 | B109: 125 | C109: 25 | D109: 75 | E109: 20.8 | F109: 83.3 | G109: 16.9 | H109: 91.2 | I109: 13.9 | J109: 97.2 | K109: 11.4 | L109: 102.3 | M109: 9.2 | N109: 106.6 | O109: 7.4 | P109: 110.3 | R109: 102.3 | S109: 125 | T109: 14
A110: 13 | B110: 140 | C110: 28 | D110: 84 | E110: 23.3 | F110: 93.3 | G110: 18.9 | H110: 102.2 | I110: 15.6 | J110: 108.9 | K110: 12.7 | L110: 114.5 | M110: 10.3 | N110: 119.4 | O110: 8.2 | P110: 123.5 | R110: 114.5 | S110: 140 | T110: 15
A111: 14 | B111: 160 | C111: 32 | D111: 96 | E111: 26.7 | F111: 106.7 | G111: 21.6 | H111: 116.8 | I111: 17.8 | J111: 124.4 | K111: 14.5 | L111: 130.9 | M111: 11.8 | N111: 136.5 | O111: 9.4 | P111: 141.2 | R111: 130.9 | S111: 160 | T111: 16
B113: Rugosidad absoluta tuberias (mm)
B115: PP (Polipropileno) | C115: 0.0015
B116: PEX (Polietileno reticulado) | C116: 0.0015
B117: HDPE (Polietileno de Alta Densidad) | C117: 0.0015
B118: LDPE (Polietileno de baja densidad) | C118: 0.0015
B119: PB (polibutileno) | C119: 0.0015
B120: PVC-C | C120: 0.0015
B121: PCV | C121: 0.02
B122: Cobre | C122: 0.0015
B123: Acero galvanizado | C123: 0.1
B124: Hormigon liso | C124: 0.5
B125: Hormigon rugoso | C125: 10
B132: Diámetros tuberias cobre
B135: espesor 1mm
B136: Dnominal | C136: Dint | D136: fila
B137: 6 | C137: =B137-2 -> 4 | D137: 1
B138: 8 | C138: =B138-2 -> 6 | D138: 2
B139: 10 | C139: 8 | D139: 3
B140: 12 | C140: 10 | D140: 4
B141: 15 | C141: 13 | D141: 5
B142: 18 | C142: 16 | D142: 6
B143: 22 | C143: 20 | D143: 7
B144: 28 | C144: 26 | D144: 8
B145: 35 | C145: 33 | D145: 9
B146: 42 | C146: 40 | D146: 10
B161: Lista de tramos AF
C163: inicio | F163: nº tramos: | G163: ='Tramos AF'!A8 -> 1
B164: 1 | C164: =IF(B164<G163,B164,"") -> 
B165: 2 | C165: =IF(B165<G164,B165,"") -> 
B166: 3
B167: 4
B168: 5
B169: 6
B170: 7
B171: 8
B172: 9
B173: 10
B174: 11
B175: 12
B176: 13
B177: 14
B178: 15
B179: 16
B180: 17
B181: 18
B182: 19
B183: 20
B184: 21
B185: 22
B186: 23
B187: 24
B188: 25
B189: 26
B190: 27
B191: 28
B192: 29
B193: 30
B194: 31
B195: 32
B196: 33
B197: 34
B198: 35
B200: Perdidas térmicas y aislamiento
C202: Ubicación
B203: espesor (mm) aislamiento | C203: Interior | D203: Exterior
B204: 0 | C204: 30 | D204: 40
B205: 36 | C205: 35 | D205: 45
B206: 61 | C206: 35 | D206: 45
B207: 91 | C207: 35 | D207: 45
B208: 141 | C208: 40 | D208: 50
C210: espesor aislamiento
B211: Perdidas (Salto 30ºC) | C211: 30 | D211: 35 | E211: 40 | F211: 45 | G211: 50
B212: 12 | C212: 4.3 | D212: =(C212+E212)/2 -> 4.05 | E212: 3.8 | F212: =(E212+G212)/2 -> 3.6 | G212: =3.4 -> 3.4
B213: 16 | C213: 4.3 | D213: =(C213+E213)/2 -> 4.05 | E213: 3.8 | F213: 3.6 | G213: =3.4 -> 3.4
B214: 20 | C214: 4.8 | D214: =(C214+E214)/2 -> 4.5 | E214: 4.2 | F214: 4 | G214: 3.8
B215: 25 | C215: 5.5 | D215: 5.1 | E215: 4.7 | F215: 4.5 | G215: 4.3
B216: 32 | C216: 6.3 | D216: 5.85 | E216: 5.4 | F216: 5.1 | G216: 4.8
B217: 40 | C217: 7.2 | D217: 6.65 | E217: 6.1 | F217: 5.75 | G217: 5.4
B218: 50 | C218: 7.9 | D218: 7.3 | E218: 6.7 | F218: 6.3 | G218: 5.9
B219: 63 | C219: 9.1 | D219: 8.35 | E219: 7.6 | F219: 7.15 | G219: 6.7
B220: 75 | C220: 10.8 | D220: 9.85 | E220: 8.9 | F220: 8.35 | G220: 7.8
B221: 90 | C221: 12.2 | D221: 11.15 | E221: 10.1 | F221: 9.4 | G221: 8.7
B222: 110 | C222: 13.5 | D222: 12.25 | E222: 11 | F222: 10.25 | G222: 9.5
B223: 125 | C223: 14.7 | D223: 13.35 | E223: 12 | F223: 11.1 | G223: 10.2
B224: 140 | C224: 17.2 | D224: 15.6 | E224: 14 | F224: 12.95 | G224: 11.9
B225: 160 | C225: 19.6 | D225: 17.75 | E225: 15.9 | F225: 14.7 | G225: 13.5
B227: Diámetros tuberias retorno CTE HS4
B229: diámetro nominal | C229: l/h | D229: l/s
B230: 16 | C230: 140 | D230: =C230/3600 -> 0.039 | E230: 16
B231: 20 | C231: 300 | D231: 0.083 | E231: 20
B232: 25 | C232: 600 | D232: 0.167 | E232: 25
B233: 32 | C233: 1100 | D233: 0.306 | E233: 32
B234: 40 | C234: 1800 | D234: 0.500 | E234: 40
B235: 50 | C235: 3300 | D235: 0.917 | E235: 50
B237: Contadores

Sheet RESUMEN
B2: Proyecto | C2: 25 viviendas Humanes
B4: Consumos tipo Agua Fria
B6: ='Consumos TIPO'!C46 -> Termoplastico | C6: ='Consumos TIPO'!D12 -> serie 5 | D6: Qs (l/s) | E6: Dnom (mm) | F6: v(m/s)
B8: ='Consumos TIPO'!H9 -> VIVIENDA TIPO A | C8: ='Consumos TIPO'!D19 -> Cocina + 2 baños (ducha + bañera) | D8: ='Consumos TIPO'!E42 -> 0.71 | E8: ='Consumos TIPO'!E46 -> 25 | F8: ='Consumos TIPO'!E48 -> 2.16
B9: ='Consumos TIPO'!H10 -> VIVIENDA TIPO B | C9: ='Consumos TIPO'!J19 -> Duplex Cocina + 3 baños (2xducha + bañera) | D9: ='Consumos TIPO'!K42 -> 0.80 | E9: ='Consumos TIPO'!K46 -> 25 | F9: ='Consumos TIPO'!K48 -> 2.43
B10: ='Consumos TIPO'!H11 -> VIVIENDA TIPO C | C10: ='Consumos TIPO'!O19 -> Cocina + 2 baños (ducha + bañera) + aseo | D10: ='Consumos TIPO'!P42 -> 0.80 | E10: ='Consumos TIPO'!P46 -> 25 | F10: ='Consumos TIPO'!P48 -> 2.43
B11: ='Consumos TIPO'!H12 -> VIVIENDA TIPO D | C11: ='Consumos TIPO'!T19 -> Cocina + 3 baños (2 duchas + bañera) | D11: ='Consumos TIPO'!U42 -> 0.93 | E11: ='Consumos TIPO'!U46 -> 25 | F11: ='Consumos TIPO'!U48 -> 2.82
B12: ='Consumos TIPO'!H13 -> VIVIENDA TIPO E | C12: ='Consumos TIPO'!Y19 -> Cocina + 1 baño | D12: ='Consumos TIPO'!Z42 -> 0.50 | E12: ='Consumos TIPO'!Z46 -> 20 | F12: ='Consumos TIPO'!Z48 -> 2.36
C14: ='Consumos TIPO'!O9 -> Basuras + Baldeo | D14: ='Consumos TIPO'!P9 -> 0.20 | E14: ='Consumos TIPO'!R9 -> 16 | F14: ='Consumos TIPO'!Z9 -> 1.48
C15: ='Consumos TIPO'!O10 -> Riego | D15: ='Consumos TIPO'!P10 -> 1.00 | E15: ='Consumos TIPO'!R10 -> 32 | F15: ='Consumos TIPO'!Z10 -> 1.85
C16: ='Consumos TIPO'!O11 -> Sala Solar | D16: ='Consumos TIPO'!P11 -> 2.85 | E16: ='Consumos TIPO'!R11 -> 50 | F16: ='Consumos TIPO'!Z11 -> 2.17
C17: ='Consumos TIPO'!O12 -> Piscina | D17: ='Consumos TIPO'!P12 -> 2.00 | E17: ='Consumos TIPO'!R12 -> 40 | F17: ='Consumos TIPO'!Z12 -> 2.38
C18: ='Consumos TIPO'!O13 -> Vestuarios | D18: ='Consumos TIPO'!P13 -> 0.00 | E18: ='Consumos TIPO'!R13 -> 16 | F18: ='Consumos TIPO'!Z13 -> 0.00
B20: TOTAL CONSUMO AF | D20: ='Consumos TIPO'!D13 -> 3.14 | E20: ='Tramos AF'!AA12 -> 50 | F20: ='Tramos AF'!AC12 -> 2.95
B22: Perdida de carga lineal | C22: ='Tramos AF'!D6 -> 6.32 mca
B23: Altura suministro | C23: ='Grupo AF'!C8 -> 17.00 m
B25: Perdida de carga TOTAL | C25: ='Grupo AF'!C12 -> 37.97 mca
B26: Caudal de suministro | C26: =D20 -> 3.14 l/s
B28: Equipo seleccionado | C28: EBARA AP MVP7-400/8-3
B29: Bombas simultáneas | C29: ='Grupo AF'!C25 -> 2
B30: Bombas en reserva | C30: ='Grupo AF'!C26 -> 1
B31: Deposito de regulacion | C31: ='Grupo AF'!C21 -> 1,300 l
B32: Depsito de membrana | C32: ='Grupo AF'!C38 -> 200 l
B34: Consumos tipo ACS
B36: =B6 -> Termoplastico | C36: =C6 -> serie 5 | D36: Qs (l/s) | E36: Dnom (mm) | F36: v(m/s)
B38: =B8 -> VIVIENDA TIPO A | C38: =C8 -> Cocina + 2 baños (ducha + bañera) | D38: ='Consumos TIPO'!F42 -> 0.51 | E38: ='Consumos TIPO'!F46 -> 20 | F38: ='Consumos TIPO'!F48 -> 2.43
B39: =B9 -> VIVIENDA TIPO B | C39: Duplex Cocina + 3 baños (2xducha + bañera) | D39: ='Consumos TIPO'!L42 -> 0.57 | E39: ='Consumos TIPO'!L46 -> 20 | F39: ='Consumos TIPO'!L48 -> 2.70
B40: =B10 -> VIVIENDA TIPO C | C40: Cocina + 2 baños (ducha + bañera) + aseo | D40: ='Consumos TIPO'!Q42 -> 0.55 | E40: ='Consumos TIPO'!Q46 -> 20 | F40: ='Consumos TIPO'!Q48 -> 2.61
B41: =B11 -> VIVIENDA TIPO D | C41: Cocina + 3 baños (2 duchas + bañera) | D41: ='Consumos TIPO'!V42 -> 0.64 | E41: ='Consumos TIPO'!V46 -> 25 | F41: ='Consumos TIPO'!V48 -> 1.95
B42: =B12 -> VIVIENDA TIPO E | C42: Cocina + 1 baño | D42: ='Consumos TIPO'!AA42 -> 0.38 | E42: ='Consumos TIPO'!AA46 -> 16 | F42: ='Consumos TIPO'!AA48 -> 2.85
B44: TOTAL CONSUMO ACS | D44: ='Consumos TIPO'!D14 -> 2.59 | E44: ='Tramos ACS'!AA12 -> 50 | F44: ='Tramos ACS'!AC12 -> 2.48

Sheet Graficos (hidden)
L43: Diámetro interior suministro:
